Workbook

Sheet Main Menu
C1: Employer Cost Of Layoffs Calculator - 2019
B2: This calculator estimates the increase in UI taxes that will result in the following year after making a layoff in the
B3: current year. Also, an estimate is provided of how many layoffs an employer can make before reaching the maximum
B4: tax rate in the state's tax schedule, (after which no further tax increases will take place). While the calculator was
B5: constructed for tax year 2019, any year can be used with the understanding that differences will result due to changes in state law.
B6: For a description of the calculator methodology see: https://www.bls.gov/opub/mlr/2020/article/the-cost-of-layoffs-in-ui-taxes.htm
B7: Actual added tax amount may vary, employers should contact their state office for assistance.
B8: © CRUIS 2021
B9: Inputs:
C10: State:
C12: Average Number of Employees Employed by the Company in 2018: | M12: 5
C13: The number of those Employees that earn less than the
C14: State Unemployment Insurance Taxable Wage Base: | M14: 2
C16: Total Wages Paid by Employer in Last Calendar Year (000): | M16: 200
C18: Number of Planned Layoffs in 2018: | L18: 3
B21: Output:
C22: 1) Employer will pay approximately this much more in taxes
C23: per employee in 2019 as a result of these layoffs1: | M23: =+Calculations!BI12 -> 833.3962264
C25: 2) For a total increase in UI Taxes as a percent of total wages of: | M25: =+Calculations!BI15 -> 0.02083490566
C27: 3) In this state, The employer's tax rate will vary between | K27: =+Calculations!BI16/100 -> 0.015 | L27: and | M27: =+Calculations!BI17/100 -> 0.062
C29: 4) The Estimated Number of Layoffs the Employer would need
C30: to make in 2018 in order to reach the maximum tax
C31: rate in the State's tax schedule in 20192: | M31: =+Calculations!BI13 -> 3
B33: Assumptions:
B34: * Each laid off employee receives the average total Unemployment Insurance benefits per claimant paid in the last year.
B35: * All employee benefits are assigned to the employer's state experience rating formulation.
B36: * Employer cannot lay off more emolyees than listed as employed.
B37: Notes:
B38: 1. Applicable only for employers that are not assigned the minimum tax rate in Reserve Ratio experience rating states and
B39: those not already at the maximum tax rate in any state.
B41: 2. This amount represents the minimum number of layoffs needed to move an employer to the maximum tax rate, if in
B42: the current year they are assigned the lowest tax rate in the state tax schedule. Employers assigned a rate higher than
B43: the minimum rate could need fewer layoffs to reach the maximum tax rate.

Sheet Calculate

Sheet Calculations
C1: Calculations for Estimated Marginal Impact of Making Layoffs for an Individual Employer and the Number of Layoffs Needed to Reach the Maximum Tax Rate
D5: Input Data | L5: User Inputs | P5: Calculated Variables based on Inputs | Y5: Outputs | AE5: INPUTS- From State Law | AP5: Calculations from State law | BC5: Calculations For Output of Marginal Tax Cost Screen
C6: 2019 | D6: 2018 | E6: 2019 | F6: 2019 | G6: 2019 | H6: 2019 | I6: 2019 | J6: 2019 | P6: %MTWB < is avg Wage | T6: Up to Max Ben Rat | Y6: For each employee making the tax base | AA6: Output Analysis Check | AW6: chg. In tax per Chg in Interval
D7: Average Benefits per | E7: MTC | F7: Max Intervl in Exp. Tax Tabl | G7: Max Intervl in Exp. Tax Tabl | H7: Avg. tax rate Chng | I7: Years in State Exp Rate | P7: 0.666 | Q7: Tot bens | R7: Bens Charg- Cont | S7: Tot Ben ratio | T7: Due to max amt of | U7: Num. of intervals | V7: Tot Bens Needed | Y7: employer will pay this much more in taxes | AG7: 2019 | AH7: 2019 | AI7: 2019 | AJ7: 2019 | AK7: 2019 | AL7: 2019 | AM7: 2019 | AN7: 2019 | AP7: 2019 | AR7: Reserve Ratio | AS7: Adjustment Factor | AT7: Diff. Betwn | AW7: slope of state sched. | AX7: Avg Tax Chg per Intvl | AY7: Max Intervl in Tax Tabl | AZ7: Adj Max Interval | BD7: ABB | BE7: State | BG7: Year
D8: First Payment | E8: Per Emp Tax Diff / | F8: MAXBENRATIO (%) | G8: MAXBENRATIO (%) | H8: per interval | I8: Formula for Averaging | J8: Avg Tax Rate Chg per | L8: Number of | M8: Number of | N8: Employer | O8: Employer Est. | P8: Amt of Tax Wages | Q8: Charged | R8: for Res Rat St's | S8: Charged | T8: Bens Needed to reach | U8: the Ben Ratio Takes | V8: to reach Max interval | W8: Include. Cont for RR | Y8: next year | AA8: Tot. Tax Payment/ | AC8: Diff (Benefits- tax Pay) | AH8: Maximum | AI8: Statutory | AJ8: Statutory | AK8: Min. Exper. Rate | AL8: Max Exper. | AM8: Years in | AN8: Avg Cont. Rate | AP8: # Intervals | AQ8: # of Intervals to | AR8: Adj.fac for Bal+Cont | AS8: 3.7 | AT8: Max-Min | AU8: Est Contributions | AW8: Marginal tax cost | AX8: Average Slope | AY8: MAXBENRATIO (%) | AZ8: for Res. Ratio bal. | BC8: 1 | BD8: AK | BE8: Alaska | BF8: 1 | BG8: 2010 | BJ8: 8
C9: Exp. Rat. Type | D9: Tot Ben / First Pays | E9: Exper Intrvl Diff | F9: BR: Max Intrl* Yrs | H9: Tax Range / Intrvls | I9: For benefit Ratio States | J9: Interval * Years in formula | L9: Employees | M9: Employees < Base | N9: Tot wags | O9: Curr yr layoffs | P9: Input | Q9: avg ben* inp lay | T9: max interval | U9: Ben rato/benRat perintrvl | V9: over yrs in Frmla | W9: Add Avg. Contrib. | Y9: Total change in per employee tax cost as | Z9: Payment as a | AA9: Total Benefits Charg. | AB9: Total payment | AC9: one year | AE9: State | AF9: State | AG9: Experience Formula | AH9: Taxable | AI9: Min. Tax | AJ9: Max. Tax | AK9: Interval | AL9: interval | AM9: Exp Rating Formula | AN9: Per Employer | AQ9: rep. 1% chg. | AR9: From Avg.Res. Rat Bal. | AS9: Final adj Intervals | AT9: Exp rate | AU9: for the Employer | AW9: Chg. In Tax per 1% | AX9: Tax Range / intervls | AY9: Max Intrvl(%)* Yrs-in frmula | AZ9: Max Intrvl(%)* Yrs-in frmula | BA9: Max Tax capacity | BC9: 2 | BD9: AL | BE9: ALABAMA | BF9: 2 | BG9: 2011 | BH9: STATE: | BI9: 5
A10: ABB. | B10: STATE | D10: From 394 report | E10: ( Column BI) | F10: RR: Diff in Max Min Exp Rt | H10: Column AO | I10: Res. Ratio States= 1 | N10: (000) | P10: >Base + < Base | T10: Reduced for rounding | Y10: a result of these layoffs | Z10: % of tot. Wages | AA10: one yr. | AH10: Wage Base | AI10: Rate | AJ10: Rate | AN10: (for Res Ratio) | AY10: For BenRatio or just Res Rat | AZ10: RR: Adj Diff of max min | BA10: Max Tax rate * MTWB | BC10: 3 | BD10: AR | BE10: ARKANSAS | BF10: 3 | BG10: 2012 | BH10: YR: | BI10: =INDEX($BG$8:$BG$17,MATCH($BJ$8,$BF$8:$BF$17,0)) -> 2017
A11: AK | B11: Alaska | C11: Payroll Decline | D11: 4530.512491 | E11: =+AW11 -> 83.6 | F11: =+AY11 -> NA | G11: NA | H11: =+AX11 -> 0.002095238095 | I11: 3 | J11: =+H11*I11 -> 0.006285714286 | L11: =+'Main Menu'!$M$12 -> 5 | M11: =+'Main Menu'!$M$14 -> 2 | N11: =+'Main Menu'!$M$16 -> 200 | O11: =+'Main Menu'!$L$18 -> 3 | P11: =+((L11-M11)*(AH11))+(M11*(AH11*$P$7)) -> 172846.8 | Q11: =+D11*O11 -> 13591.53747 | R11: =IF(AG11="Reserve Ratio",Q11-AU11,Q11) -> 13591.53747 | S11: =+R11/P11 -> 0.0786334342 | T11: =+W11/P11 ->  | U11: =+S11/(J11) -> 12.50986453 | V11: =+(F11)*(P11) ->  | W11: =IF(AG10="Reserve Ratio",V11-AU11,V11) ->  | Y11: =+U11*E11 -> 1045.824675 | Z11: =+AB11/(N11*1000) -> 0.02614561687 | AA11: =+(AB11)/Q11 -> 0.3847337642 | AB11: =IF(O11>M75,((L11)*Y11),((L11)*Y11)) -> 5229.123374 | AC11: =+Q11-AB11 -> 8362.4141 | AE11: AK | AF11: ALASKA | AG11: Payroll Decline | AH11: 39900 | AI11: 1.5 | AJ11: 5.9 | AK11: 0 | AL11: 21 | AM11: 3 | AN11: 1 | AP11: 21 | AQ11: =IF(AT11>AP11,AP11,AT11) -> 21 | AS11: =IF(C11="Reserve Ratio",AQ11/($AS$8+AR11),AQ11) -> 21 | AT11: =+AL11-AK11 -> 21 | AU11: =+((AN11/100)*P11) -> 1728.468 | AW11: =+((AH11*(AJ11/100))-(AH11*(AI11/100))) /(AQ11) -> 83.6 | AX11: =+((AJ11-AI11)/100)/AS11 -> 0.002095238095 | AY11: NA | AZ11: NA | BA11: =+(AJ11/100)*AH11 -> 2354.1 | BC11: 4 | BD11: AZ | BE11: ARIZONA | BF11: 4 | BG11: 2013 | BH11: CALCULATION
A12: AL | B12: Alabama | C12: Benefit Ratio | D12: 2876.040375 | E12: =+AW12 -> 68.33333333 | F12: =+AY12 -> 0.216 | G12: =+AT12/100 -> 0.072 | H12: =+AX12 -> 0.008541666667 | I12: 3 | J12: =+H12*I12 -> 0.025625 | L12: =+'Main Menu'!$M$12 -> 5 | M12: =+'Main Menu'!$M$14 -> 2 | N12: =+'Main Menu'!$M$16 -> 200 | O12: =+'Main Menu'!$L$18 -> 3 | P12: =+((L12-M12)*(AH12))+(M12*(AH12*$P$7)) -> 34656 | Q12: 8628.121126 | R12: 8628.121126 | S12: =+Q12/P12 -> 0.2489647139 | T12: =+W12/P12 -> 0.216 | U12: =IF(S12>T12,T12/(J12),S12/J12) -> 8.429268293 | V12: 7485.696 | W12: =IF(AG12="Reserve Ratio",V12+AU12,V12) -> 7485.696 | Y12: 576 | Z12: 0.0144 | AA12: =+(AB12)/Q12 -> 0.3337922542 | AB12: =IF(O12>M76,((L12)*Y12),((L12)*Y12)) -> 2880 | AC12: 5748.121126 | AE12: AL | AF12: ALABAMA | AG12: Benefit Ratio | AH12: 8000 | AI12: 0.65 | AJ12: 6.8 | AK12: 0 | AL12: 7.2 | AM12: 3 | AN12: 1.2 | AP12: 26 | AQ12: 7.2 | AS12: 7.2 | AT12: 7.2 | AU12: 415.872 | AW12: =+((AH12*(AJ12/100))-(AH12*(AI12/100))) /(AQ12) -> 68.33333333 | AX12: 0.008541666667 | AY12: =IF(AG12="Benefit Ratio",(AL12/100)*AM12,(AT12/100)) -> 0.216 | AZ12: =IF(AG12="Benefit Ratio",(AL12/100)*AM12,(AS12/100)) -> 0.216 | BA12: =+(AJ12/100)*AH12 -> 544 | BC12: 5 | BD12: CA | BE12: CALIFORNIA | BF12: 5 | BG12: 2014 | BH12: MTC | BI12: =SUMIFS($Y$11:$Y$63,$BC$8:$BC$60,"="&$BI$9) -> 833.3962264
A13: AR | B13: Arkansas | C13: Reserve Ratio | D13: 2558.88651 | E13: 59.29648241 | F13: 0.0995 | G13: =+AT13/100 -> 0.0995 | H13: 0.02247929648 | I13: 1 | J13: 0.02247929648 | L13: =+'Main Menu'!$M$12 -> 5 | M13: =+'Main Menu'!$M$14 -> 2 | N13: =+'Main Menu'!$M$16 -> 200 | O13: =+'Main Menu'!$L$18 -> 3 | P13: =+((L13-M13)*(AH13))+(M13*(AH13*$P$7)) -> 43320 | Q13: 7676.659529 | R13: 7039.855529 | S13: 0.177208207 | T13: =+W13/P13 -> 0.1142 | U13: 5.080230162 | V13: 4310.34 | W13: 4947.144 | Y13: 301.2397784 | Z13: 0.007530994461 | AA13: 0.1962049882 | AB13: 1506.198892 | AC13: 6170.460637 | AE13: AR | AF13: ARKANSAS | AG13: Reserve Ratio | AH13: 10000 | AI13: 0.1 | AJ13: 6 | AK13: 0 | AL13: 9.95 | AM13: 3 | AN13: 1.47 | AP13: 13 | AQ13: 9.95 | AR13: 0.091 | AS13: 2.624637299 | AT13: 9.95 | AU13: 636.804 | AW13: =+((AH13*(AJ13/100))-(AH13*(AI13/100))) /(AQ13) -> 59.29648241 | AX13: 0.02247929648 | AY13: 0.0995 | AZ13: =IF(AG13="Benefit Ratio",(AL13/100)*AM13,(AS13/100)) -> 0.02624637299 | BA13: 600 | BC13: 6 | BD13: CO | BE13: COLORADO | BF13: 6 | BG13: 2015 | BH13: Max Layoffs | BI13: =SUMIFS($M$75:$M$127,$BC$8:$BC$60,"="&$BI$9) -> 3
A14: AZ | B14: Arizona | C14: Reserve Ratio | D14: 3399.526965 | E14: 34.3 | F14: 0.26 | G14: 0.26 | H14: 0.0185955 | I14: 1 | J14: 0.0185955 | L14: =+'Main Menu'!$M$12 -> 5 | M14: =+'Main Menu'!$M$14 -> 2 | N14: =+'Main Menu'!$M$16 -> 200 | O14: =+'Main Menu'!$L$18 -> 3 | P14: =+((L14-M14)*(AH14))+(M14*(AH14*$P$7)) -> 30324 | Q14: 10198.58089 | R14: 9728.558894 | S14: 0.3363204358 | T14: 0.2755 | U14: 14.81541233 | V14: 7884.24 | W14: 8354.262 | Y14: 508.168643 | Z14: 0.01270421607 | AA14: 0.2491369379 | AB14: 2540.843215 | AC14: 7657.737679 | AE14: AZ | AF14: ARIZONA | AG14: Reserve Ratio | AH14: 7000 | AI14: 0.04 | AJ14: 11.8 | AK14: -13 | AL14: 13 | AM14: 3 | AN14: 1.55 | AP14: 24 | AQ14: 24 | AR14: 0.095 | AS14: 6.324110672 | AT14: 26 | AU14: 470.022 | AW14: =+((AH14*(AJ14/100))-(AH14*(AI14/100))) /(AQ14) -> 34.3 | AX14: 0.0185955 | AY14: 0.26 | AZ14: 0.06324110672 | BA14: 826 | BC14: 7 | BD14: CT | BE14: CONNECTICUT | BF14: 7 | BG14: 2016 | BH14: Layoffs in ER yrs for Max rate | BI14: =SUMIFS($N$75:$N$127,$BC$8:$BC$60,"="&$BI$9) -> 1
A15: CA | B15: California | C15: Reserve Ratio | D15: 5481.920827 | E15: 8.657894737 | F15: 0.4 | G15: 0.4 | H15: 0.004588684211 | I15: 1 | J15: 0.004588684211 | L15: =+'Main Menu'!$M$12 -> 5 | M15: =+'Main Menu'!$M$14 -> 2 | N15: =+'Main Menu'!$M$16 -> 200 | O15: =+'Main Menu'!$L$18 -> 3 | P15: =+((L15-M15)*(AH15))+(M15*(AH15*$P$7)) -> 30324 | Q15: 16445.76248 | R15: 15181.25168 | S15: 0.5423348662 | T15: 0.4417 | U15: 96.25853071 | V15: 12129.6 | W15: 13394.1108 | Y15: 833.3962264 | Z15: 0.02083490566 | AA15: 0.2533771929 | AB15: 4166.981132 | AC15: 12278.78135 | AE15: CA | AF15: CALIFORNIA | AG15: Reserve Ratio | AH15: 7000 | AI15: 1.5 | AJ15: 6.2 | AK15: -20 | AL15: 20 | AM15: 3 | AN15: 4.17 | AP15: 38 | AQ15: 38 | AR15: 0.01 | AS15: 10.2425876 | AT15: 40 | AU15: 1264.5108 | AW15: 8.657894737 | AX15: 0.004588684211 | AY15: 0.4 | AZ15: 0.102425876 | BA15: 434 | BC15: 8 | BD15: DC | BE15: DISTRICT OF COLUMBIA | BF15: 8 | BG15: 2017 | BH15: Total Tax: % of Total Wages | BI15: =SUMIFS($Z$11:$Z$63,$BC$8:$BC$60,"="&$BI$9) -> 0.02083490566
A16: CO | B16: Colorado | C16: Reserve Ratio | D16: 5791.491394 | E16: 37.93961538 | F16: 0.45 | G16: 0.45 | H16: 0.01086057692 | I16: 1 | J16: 0.01086057692 | L16: =+'Main Menu'!$M$12 -> 5 | M16: =+'Main Menu'!$M$14 -> 2 | N16: =+'Main Menu'!$M$16 -> 200 | O16: =+'Main Menu'!$L$18 -> 3 | P16: =+((L16-M16)*(AH16))+(M16*(AH16*$P$7)) -> 56749.2 | Q16: 17374.47418 | R16: 16506.21142 | S16: 0.3061624513 | T16: 0.4653 | U16: 28.1902567 | V16: 25537.14 | W16: 26405.40276 | Y16: 1069.527497 | Z16: 0.02673818742 | AA16: 0.3077870114 | AB16: 5347.637483 | AC16: 12026.8367 | AE16: CO | AF16: COLORADO | AG16: Reserve Ratio | AH16: 13100 | AI16: 0.62 | AJ16: 8.15 | AK16: -25 | AL16: 20 | AM16: 3 | AN16: 1.53 | AP16: 26 | AQ16: 26 | AR16: 0.05 | AS16: 6.933333333 | AT16: 45 | AU16: 868.26276 | AW16: 37.93961538 | AX16: 0.01086057692 | AY16: 0.45 | AZ16: 0.06933333333 | BA16: 1067.65 | BC16: 9 | BD16: DE | BE16: DELAWARE | BF16: 9 | BG16: 2018 | BH16: Minimum Tax Rate | BI16: =SUMIFS($AI$11:$AI$63,$BC$8:$BC$60,"="&$BI$9) -> 1.5
A17: CT | B17: Connecticut | C17: Benefit Ratio | D17: 5575.889366 | E17: 136.1111111 | F17: 0.162 | G17: 0.054 | H17: 0.009074074074 | I17: 3 | J17: 0.02722222222 | L17: =+'Main Menu'!$M$12 -> 5 | M17: =+'Main Menu'!$M$14 -> 2 | N17: =+'Main Menu'!$M$16 -> 200 | O17: =+'Main Menu'!$L$18 -> 3 | P17: 64980 | Q17: 16727.6681 | R17: 16727.6681 | S17: 0.2574279486 | T17: 0.162 | U17: 5.951020408 | V17: 10526.76 | W17: 10526.76 | Y17: 810 | Z17: 0.02025 | AA17: 0.2421138426 | AB17: 4050 | AC17: 12677.6681 | AE17: CT | AF17: CONNECTICUT | AG17: Benefit Ratio | AH17: 15000 | AI17: 0.5 | AJ17: 5.4 | AK17: 0 | AL17: 5.4 | AM17: 3 | AN17: 3.49 | AP17: 5.4 | AQ17: 5.4 | AS17: 5.4 | AT17: 5.4 | AU17: 2267.802 | AW17: 136.1111111 | AX17: 0.009074074074 | AY17: 0.162 | AZ17: 0.162 | BA17: 810 | BC17: 10 | BD17: FL | BE17: FLORIDA | BF17: 10 | BG17: 2019 | BH17: Maximum Tax Rate | BI17: =SUMIFS($AJ$11:$AJ$63,$BC$8:$BC$60,"="&$BI$9) -> 6.2
A18: DC | B18: District of Columbia | C18: Reserve Ratio | D18: 5839.165968 | E18: 28.58823529 | F18: 0.18 | G18: 0.18 | H18: 0.01207058824 | I18: 1 | J18: 0.01207058824 | L18: =+'Main Menu'!$M$12 -> 5 | M18: =+'Main Menu'!$M$14 -> 2 | N18: =+'Main Menu'!$M$16 -> 200 | O18: =+'Main Menu'!$L$18 -> 3 | P18: 38988 | Q18: 17517.4979 | R18: 16558.3931 | S18: 0.4493048606 | T18: 0.2046 | U18: 16.9502924 | V18: 7017.84 | W18: 7976.9448 | Y18: 484.5789474 | Z18: 0.01211447368 | AA18: 0.1383128316 | AB18: 2422.894737 | AC18: 15094.60317 | AE18: DC | AF18: DISTRICT OF COLUMBIA | AG18: Reserve Ratio | AH18: 9000 | AI18: 1.6 | AJ18: 7 | AK18: -10 | AL18: 8 | AM18: 3 | AN18: 2.46 | AP18: 17 | AQ18: 17 | AR18: 0.1 | AS18: 4.473684211 | AT18: 18 | AU18: 959.1048 | AW18: 28.58823529 | AX18: 0.01207058824 | AY18: 0.18 | AZ18: 0.04473684211 | BA18: 630 | BC18: 11 | BD18: GA | BE18: GEORGIA | BF18: 11 | BG18: 2020 | BH18: Years in ER Formula: | BI18: =SUMIFS($AM$11:$AM$63,$BC$8:$BC$60,"="&$BI$9) -> 3
A19: DE | B19: Delaware | C19: Benefit Wage | D19: 4273.154223 | E19: 162.9375 | F19: 0.246 | G19: 0.082 | H19: 0.009875 | I19: 3 | J19: 0.029625 | L19: =+'Main Menu'!$M$12 -> 5 | M19: =+'Main Menu'!$M$14 -> 2 | N19: =+'Main Menu'!$M$16 -> 200 | O19: =+'Main Menu'!$L$18 -> 3 | P19: 71478 | Q19: 12819.46267 | R19: 12819.46267 | S19: 0.1793483683 | T19: 0.246 | U19: 6.053953361 | V19: 17583.588 | W19: 17583.588 | Y19: 986.4160257 | Z19: 0.02466040064 | AA19: 0.3847337642 | AB19: 4932.080129 | AC19: 7887.382542 | AE19: DE | AF19: DELAWARE | AG19: Benefit Ratio | AH19: 16500 | AI19: 0.1 | AJ19: 8 | AK19: 0 | AL19: 8.2 | AM19: 3 | AN19: 1.49 | AP19: 8 | AQ19: 8 | AS19: 8 | AT19: 8.2 | AU19: 1065.0222 | AW19: 162.9375 | AX19: 0.009875 | AY19: 0.246 | AZ19: 0.246 | BA19: 1320 | BC19: 12 | BD19: HI | BE19: HAWAII | BF19: 12 | BG19: 2021
A20: FL | B20: Florida | C20: Benefit Ratio | D20: 2270.640947 | E20: 68.7037037 | F20: 0.162 | G20: 0.054 | H20: 0.009814814815 | I20: 3 | J20: 0.02944444444 | L20: =+'Main Menu'!$M$12 -> 5 | M20: =+'Main Menu'!$M$14 -> 2 | N20: =+'Main Menu'!$M$16 -> 200 | O20: =+'Main Menu'!$L$18 -> 3 | P20: 30324 | Q20: 6811.922841 | R20: 6811.922841 | S20: 0.2246380043 | T20: 0.162 | U20: 5.501886792 | V20: 4912.488 | W20: 4912.488 | Y20: 378 | Z20: 0.00945 | AA20: 0.2774546988 | AB20: 1890 | AC20: 4921.922841 | AE20: FL | AF20: FLORIDA | AG20: Benefit Ratio | AH20: 7000 | AI20: 0.1 | AJ20: 5.4 | AK20: 0 | AL20: 5.4 | AM20: 3 | AN20: 0.54 | AP20: 5.4 | AQ20: 5.4 | AS20: 5.4 | AT20: 5.4 | AU20: 163.7496 | AW20: 68.7037037 | AX20: 0.009814814815 | AY20: 0.162 | AZ20: 0.162 | BA20: 378 | BC20: 13 | BD20: IA | BE20: IOWA | BF20: 13 | BG20: 2022
A21: GA | B21: Georgia | C21: Reserve Ratio | D21: 2182.804681 | E21: 31.37525562 | F21: 0.2445 | G21: 0.2445 | H21: 0.01236515337 | I21: 1 | J21: 0.01236515337 | L21: =+'Main Menu'!$M$12 -> 5 | M21: =+'Main Menu'!$M$14 -> 2 | N21: =+'Main Menu'!$M$16 -> 200 | O21: =+'Main Menu'!$L$18 -> 3 | P21: 41154 | Q21: 6548.414042 | R21: 5988.719642 | S21: 0.1591197464 | T21: 0.2581 | U21: 12.86840054 | V21: 10062.153 | W21: 10621.8474 | Y21: 403.7493564 | Z21: 0.01009373391 | AA21: 0.3082802598 | AB21: 2018.746782 | AC21: 4529.66726 | AE21: GA | AF21: GEORGIA | AG21: Reserve Ratio | AH21: 9500 | AI21: 0.025 | AJ21: 8.1 | AK21: -15.5 | AL21: 8.95 | AM21: 3 | AN21: 1.36 | AP21: 45 | AQ21: 24.45 | AR21: 0.044 | AS21: 6.530448718 | AT21: 24.45 | AU21: 559.6944 | AW21: 31.37525562 | AX21: 0.01236515337 | AY21: 0.2445 | AZ21: 0.06530448718 | BA21: 769.5 | BC21: 14 | BD21: ID | BE21: IDAHO | BF21: 14 | BG21: 2023
A22: HI | B22: Hawaii | C22: Reserve Ratio | D22: 6905.236551 | E22: 154.1647059 | F22: 0.17 | G22: 0.17 | H22: 0.012432 | I22: 1 | J22: 0.012432 | L22: =+'Main Menu'!$M$12 -> 5 | M22: =+'Main Menu'!$M$14 -> 2 | N22: =+'Main Menu'!$M$16 -> 200 | O22: =+'Main Menu'!$L$18 -> 3 | P22: 202737.6 | Q22: 20715.70965 | R22: 18465.32229 | S22: 0.1021799097 | T22: 0.1811 | U22: 8.219104702 | V22: 34465.392 | W22: 36715.77936 | Y22: 1267.095859 | Z22: 0.03167739648 | AA22: 0.3058297013 | AB22: 6335.479295 | AC22: 14380.23036 | AE22: HI | AF22: HAWAII | AG22: Reserve Ratio | AH22: 46800 | AI22: 0 | AJ22: 5.6 | AK22: -2 | AL22: 15 | AM22: 3 | AN22: 1.11 | AP22: 20 | AQ22: 17 | AR22: 0.074 | AS22: 4.504504505 | AT22: 17 | AU22: 2250.38736 | AW22: 154.1647059 | AX22: 0.012432 | AY22: 0.17 | AZ22: 0.04504504505 | BA22: 2620.8 | BC22: 15 | BD22: IL | BE22: ILLINOIS | BF22: 15 | BG22: 2024
A23: IA | B23: Iowa | C23: Benefit Ratio | D23: 4893.997084 | E23: 106.7857143 | F23: 1.05 | G23: 0.21 | H23: 0.003571428571 | I23: 5 | J23: 0.01785714286 | L23: =+'Main Menu'!$M$12 -> 5 | M23: =+'Main Menu'!$M$14 -> 2 | N23: =+'Main Menu'!$M$16 -> 200 | O23: =+'Main Menu'!$L$18 -> 3 | P23: 129526.8 | Q23: 14681.99125 | R23: 14681.99125 | S23: 0.1133509918 | T23: 1.05 | U23: 6.347655543 | V23: 136003.14 | W23: 136003.14 | Y23: 677.8389312 | Z23: 0.01694597328 | AA23: 0.2308402585 | AB23: 3389.194656 | AC23: 11292.79659 | AE23: IA | AF23: IOWA | AG23: Benefit Ratio | AH23: 29900 | AI23: 0 | AJ23: 7.5 | AK23: 0 | AL23: 21 | AM23: 5 | AN23: 1.25 | AP23: 21 | AQ23: 21 | AS23: 21 | AT23: 21 | AU23: 1619.085 | AW23: 106.7857143 | AX23: 0.003571428571 | AY23: 1.05 | AZ23: 1.05 | BA23: 2242.5 | BC23: 16 | BD23: IN | BE23: INDIANA | BF23: 16 | BG23: 2025
A24: ID | B24: Idaho | C24: Reserve Ratio | D24: 2829.029748 | E24: 181.0526316 | F24: 0.114 | G24: 0.114 | H24: 0.01674736842 | I24: 1 | J24: 0.01674736842 | L24: =+'Main Menu'!$M$12 -> 5 | M24: =+'Main Menu'!$M$14 -> 2 | N24: =+'Main Menu'!$M$16 -> 200 | O24: =+'Main Menu'!$L$18 -> 3 | P24: 173280 | Q24: 8487.089245 | R24: 6892.913245 | S24: 0.04897904689 | T24: 0.1232 | U24: 2.924581681 | V24: 19753.92 | W24: 21348.096 | Y24: 529.5032096 | Z24: 0.01323758024 | AA24: 0.3119462953 | AB24: 2647.516048 | AC24: 5839.573197 | AE24: ID | AF24: IDAHO | AG24: Reserve Ratio | AH24: 40000 | AI24: 0.24 | AJ24: 5.4 | AK24: -5.4 | AL24: 6 | AM24: 4 | AN24: 0.92 | AP24: 14 | AQ24: 11.4 | AR24: 0 | AS24: 3.081081081 | AT24: 11.4 | AU24: 1594.176 | AW24: 181.0526316 | AX24: 0.01674736842 | AY24: 0.114 | AZ24: 0.03081081081 | BA24: 2160 | BC24: 17 | BD24: KS | BE24: KANSAS
A25: IL | B25: Illinois | C25: Benefit Ratio | D25: 5649.493447 | E25: 98.66571429 | F25: 0.252 | G25: 0.084 | H25: 0.007613095238 | I25: 3 | J25: 0.02283928571 | L25: =+'Main Menu'!$M$12 -> 5 | M25: =+'Main Menu'!$M$14 -> 2 | N25: =+'Main Menu'!$M$16 -> 200 | O25: =+'Main Menu'!$L$18 -> 3 | P25: 56142.72 | Q25: 16948.48034 | R25: 16948.48034 | S25: 0.3018820666 | T25: 0.252 | U25: 11.03362002 | V25: 14147.96544 | W25: 14147.96544 | Y25: 1088.64 | Z25: 0.027216 | AA25: 0.3211615373 | AB25: 5443.2 | AC25: 11505.28034 | AE25: IL | AF25: ILLINOIS | AG25: Benefit Ratio | AH25: 12960 | AI25: 0.475 | AJ25: 6.87 | AK25: 0 | AL25: 8.4 | AM25: 3 | AN25: 2.24 | AP25: 8.4 | AQ25: 8.4 | AR25: =+$AS$8 -> 3.7 | AS25: 8.4 | AT25: 8.4 | AU25: 1257.596928 | AW25: 98.66571429 | AX25: 0.007613095238 | AY25: 0.252 | AZ25: 0.252 | BA25: 890.352 | BC25: 18 | BD25: KY | BE25: KENTUCKY
A26: IN | B26: Indiana | C26: Reserve Ratio | D26: 3496.974304 | E26: 72.83333333 | F26: 0.09 | G26: 0.09 | H26: 0.02836666667 | I26: 1 | J26: 0.02836666667 | L26: =+'Main Menu'!$M$12 -> 5 | M26: =+'Main Menu'!$M$14 -> 2 | N26: =+'Main Menu'!$M$16 -> 200 | O26: =+'Main Menu'!$L$18 -> 3 | P26: 41154 | Q26: 10490.92291 | R26: 9828.343511 | S26: 0.2549186692 | T26: 0.1061 | U26: 3.740305523 | V26: 3703.86 | W26: 4366.4394 | Y26: 272.4189189 | Z26: 0.006810472973 | AA26: 0.1298355356 | AB26: 1362.094595 | AC26: 9128.828316 | AE26: IN | AF26: INDIANA | AG26: Reserve Ratio | AH26: 9500 | AI26: 0.5 | AJ26: 7.4 | AK26: -6 | AL26: 3 | AM26: 3 | AN26: 1.61 | AP26: 21 | AQ26: 9 | AR26: 0 | AS26: 2.432432432 | AT26: 9 | AU26: 662.5794 | AW26: 72.83333333 | AX26: 0.02836666667 | AY26: 0.09 | AZ26: 0.02432432432 | BA26: 703 | BC26: 19 | BD26: LA | BE26: LOUISIANA
A27: KS | B27: Kansas | C27: Reserve Ratio | D27: 2937.226715 | E27: 19.88 | F27: 0.5 | G27: 0.5 | H27: 0.0054102 | I27: 1 | J27: 0.0054102 | L27: =+'Main Menu'!$M$12 -> 5 | M27: =+'Main Menu'!$M$14 -> 2 | N27: =+'Main Menu'!$M$16 -> 200 | O27: =+'Main Menu'!$L$18 -> 3 | P27: 60648 | Q27: 8811.680144 | R27: 7883.765744 | S27: 0.1452921802 | T27: 0.5153 | U27: 26.85523274 | V27: 30324 | W27: 31251.9144 | Y27: 533.8820269 | Z27: 0.01334705067 | AA27: 0.3029399718 | AB27: 2669.410135 | AC27: 6142.270009 | AE27: KS | AF27: KANSAS | AG27: Reserve Ratio | AH27: 14000 | AI27: 0 | AJ27: 7.1 | AK27: -18 | AL27: 32 | AM27: 3 | AN27: 1.53 | AP27: 50 | AQ27: 50 | AR27: 0.11 | AS27: 13.12335958 | AT27: 50 | AU27: 927.9144 | AW27: 19.88 | AX27: 0.0054102 | AY27: 0.5 | AZ27: 0.1312335958 | BA27: 994 | BC27: 20 | BD27: MA | BE27: MASSACHUSETTS
A28: KY | B28: Kentucky | C28: Reserve Ratio | D28: 5912.501348 | E28: 57.09375 | F28: 0.16 | G28: 0.16 | H28: 0.0202655625 | I28: 1 | J28: 0.0202655625 | L28: =+'Main Menu'!$M$12 -> 5 | M28: =+'Main Menu'!$M$14 -> 2 | N28: =+'Main Menu'!$M$16 -> 200 | O28: =+'Main Menu'!$L$18 -> 3 | P28: 45486 | Q28: 17737.50404 | R28: 16946.04764 | S28: 0.38995524 | T28: 0.1774 | U28: 8.753766396 | V28: 7277.76 | W28: 8069.2164 | Y28: 499.7853501 | Z28: 0.01249463375 | AA28: 0.1408837875 | AB28: 2498.926751 | AC28: 15238.57729 | AE28: KY | AF28: KENTUCKY | AG28: Reserve Ratio | AH28: 10500 | AI28: 0.3 | AJ28: 9 | AK28: -8 | AL28: 8 | AM28: 3 | AN28: 1.74 | AP28: 22 | AQ28: 16 | AR28: 0.027 | AS28: 4.292997049 | AT28: 16 | AU28: 791.4564 | AW28: 57.09375 | AX28: 0.0202655625 | AY28: 0.16 | AZ28: 0.04292997049 | BA28: 945 | BC28: 21 | BD28: MD | BE28: MARYLAND
A29: LA | B29: Louisiana | C29: Reserve Ratio | D29: 4133.510691 | E29: 12.44657534 | F29: 0.365 | G29: 0.365 | H29: 0.005967890411 | I29: 1 | J29: 0.005967890411 | L29: =+'Main Menu'!$M$12 -> 5 | M29: =+'Main Menu'!$M$14 -> 2 | N29: =+'Main Menu'!$M$16 -> 200 | O29: =+'Main Menu'!$L$18 -> 3 | P29: 33356.4 | Q29: 12400.53207 | R29: 11913.52863 | S29: 0.3717587051 | T29: 0.3796 | U29: 62.29315211 | V29: 12175.086 | W29: 12662.08944 | Y29: 775.336411 | Z29: 0.01938341028 | AA29: 0.3126222353 | AB29: 3876.682055 | AC29: 8523.850017 | AE29: LA | AF29: LOUISIANA | AG29: Reserve Ratio | AH29: 7700 | AI29: 0.1 | AJ29: 6 | AK29: -27 | AL29: 9.5 | AM29: 3 | AN29: 1.46 | AP29: 62 | AQ29: 36.5 | AR29: -0.008 | AS29: 9.88624052 | AT29: 36.5 | AU29: 487.00344 | AW29: 12.44657534 | AX29: 0.005967890411 | AY29: 0.365 | AZ29: 0.0988624052 | BA29: 462 | BC29: 22 | BD29: ME | BE29: MAINE
A30: MA | B30: Massachusetts | C30: Reserve Ratio | D30: 7856.449223 | E30: 64.98387097 | F30: 0.31 | G30: 0.31 | H30: 0.01620264516 | I30: 1 | J30: 0.01620264516 | L30: =+'Main Menu'!$M$12 -> 5 | M30: =+'Main Menu'!$M$14 -> 2 | N30: =+'Main Menu'!$M$16 -> 200 | O30: =+'Main Menu'!$L$18 -> 3 | P30: 64980 | Q30: 23569.34767 | R30: 21048.12367 | S30: 0.362716954 | T30: 0.3488 | U30: 21.52734918 | V30: 20143.8 | W30: 22665.024 | Y30: 1398.930481 | Z30: 0.03497326203 | AA30: 0.2967690283 | AB30: 6994.652406 | AC30: 16574.69526 | AE30: MA | AF30: MASSACHUSETTS | AG30: Reserve Ratio | AH30: 15000 | AI30: 0.94 | AJ30: 14.37 | AK30: -15 | AL30: 16 | AM30: 2 | AN30: 3.88 | AP30: 40 | AQ30: 31 | AR30: 0.04 | AS30: 8.288770053 | AT30: 31 | AU30: 2521.224 | AW30: 64.98387097 | AX30: 0.01620264516 | AY30: 0.31 | AZ30: 0.08288770053 | BA30: 2155.5 | BC30: 23 | BD30: MI | BE30: MICHIGAN
A31: MD | B31: Maryland | C31: Benefit Ratio | D31: 5737.572112 | E31: 93.00911854 | F31: 0.1974 | G31: 0.0658 | H31: 0.01094224924 | I31: 3 | J31: 0.03282674772 | L31: =+'Main Menu'!$M$12 -> 5 | M31: =+'Main Menu'!$M$14 -> 2 | N31: =+'Main Menu'!$M$16 -> 200 | O31: =+'Main Menu'!$L$18 -> 3 | P31: 36822 | Q31: 17212.71634 | R31: 17212.71634 | S31: 0.4674573988 | T31: 0.1974 | U31: 6.013388889 | V31: 7268.6628 | W31: 7268.6628 | Y31: 559.3 | Z31: 0.0139825 | AA31: 0.1624670938 | AB31: 2796.5 | AC31: 14416.21634 | AE31: MD | AF31: MARYLAND | AG31: Benefit Ratio | AH31: 8500 | AI31: 0.3 | AJ31: 7.5 | AK31: 0 | AL31: 6.58 | AM31: 3 | AN31: 2.056134944 | AP31: 9.46 | AQ31: 6.58 | AS31: 6.58 | AT31: 6.58 | AU31: 757.1100089 | AW31: 93.00911854 | AX31: 0.01094224924 | AY31: 0.1974 | AZ31: 0.1974 | BA31: 637.5 | BC31: 24 | BD31: MN | BE31: MINNESOTA
A32: ME | B32: Maine | C32: Reserve Ratio | D32: 4244.231255 | E32: 32.4 | F32: 0.2 | G32: 0.2 | H32: 0.010341 | I32: 1 | J32: 0.010341 | L32: =+'Main Menu'!$M$12 -> 5 | M32: =+'Main Menu'!$M$14 -> 2 | N32: =+'Main Menu'!$M$16 -> 200 | O32: =+'Main Menu'!$L$18 -> 3 | P32: 51984 | Q32: 12732.69376 | R32: 11770.98976 | S32: 0.24493486 | T32: 0.2185 | U32: 21.12948458 | V32: 10396.8 | W32: 11358.504 | Y32: 684.5953003 | Z32: 0.01711488251 | AA32: 0.268833647 | AB32: 3422.976501 | AC32: 9309.717263 | AE32: ME | AF32: MAINE | AG32: Reserve Ratio | AH32: 12000 | AI32: 0 | AJ32: 5.4 | AK32: 0 | AL32: 20 | AM32: 3 | AN32: 1.85 | AP32: 20 | AQ32: 20 | AR32: 0.13 | AS32: 5.221932115 | AT32: 20 | AU32: 961.704 | AW32: 32.4 | AX32: 0.010341 | AY32: 0.2 | AZ32: 0.05221932115 | BA32: 648 | BC32: 25 | BD32: MO | BE32: MISSOURI
A33: MI | B33: Michigan | C33: Benefit Ratio | D33: 3662.188786 | E33: 55.04854369 | F33: 0.103 | G33: 0.103 | H33: 0.006116504854 | I33: 3 | J33: 0.01834951456 | L33: =+'Main Menu'!$M$12 -> 5 | M33: =+'Main Menu'!$M$14 -> 2 | N33: =+'Main Menu'!$M$16 -> 200 | O33: =+'Main Menu'!$L$18 -> 3 | P33: 38988 | Q33: 10986.56636 | R33: 9781.837157 | S33: 0.2817935354 | T33: 0.1339 | U33: 7.297195767 | V33: 4015.764 | W33: 5220.4932 | Y33: 401.7 | Z33: 0.0100425 | AA33: 0.1828141691 | AB33: 2008.5 | AC33: 8978.066357 | AE33: MI | AF33: MICHIGAN | AG33: Reserve Ratio | AH33: 9000 | AI33: 0 | AJ33: 6.3 | AK33: 0 | AL33: 10.3 | AM33: 5 | AN33: 3.09 | AP33: 10.3 | AQ33: 10.3 | AS33: 10.3 | AT33: 10.3 | AU33: 1204.7292 | AW33: 55.04854369 | AX33: 0.006116504854 | AY33: 0.103 | AZ33: 0.103 | BA33: 567 | BC33: 26 | BD33: MS | BE33: MISSISSIPPI
A34: MN | B34: Minnesota | C34: Benefit Ratio | D34: 6580.351774 | E34: 338.1005587 | F34: 0.358 | G34: 0.0895 | H34: 0.009944134078 | I34: 4 | J34: 0.03977653631 | L34: =+'Main Menu'!$M$12 -> 5 | M34: =+'Main Menu'!$M$14 -> 2 | N34: =+'Main Menu'!$M$16 -> 200 | O34: =+'Main Menu'!$L$18 -> 3 | P34: 147288 | Q34: 19741.05532 | R34: 19741.05532 | S34: 0.1340303034 | T34: 0.358 | U34: 3.369582065 | V34: 52729.104 | W34: 52729.104 | Y34: 1139.257579 | Z34: 0.02848143946 | AA34: 0.2885503232 | AB34: 5696.287893 | AC34: 14044.76743 | AE34: MN | AF34: MINNESOTA | AG34: Benefit Ratio | AH34: 34000 | AI34: 0.1 | AJ34: 9 | AK34: 0 | AL34: 8.95 | AM34: 4 | AN34: 1.14 | AP34: 8.95 | AQ34: 8.95 | AS34: 8.95 | AT34: 8.95 | AU34: 1679.0832 | AW34: 338.1005587 | AX34: 0.009944134078 | AY34: 0.358 | AZ34: 0.358 | BA34: 3060 | BC34: 27 | BD34: MT | BE34: MONTANA
A35: MO | B35: Missouri | C35: Reserve Ratio | D35: 3065.137571 | E35: 31 | F35: 0.27 | G35: 0.27 | H35: 0.00980375 | I35: 1 | J35: 0.00980375 | L35: =+'Main Menu'!$M$12 -> 5 | M35: =+'Main Menu'!$M$14 -> 2 | N35: =+'Main Menu'!$M$16 -> 200 | O35: =+'Main Menu'!$L$18 -> 3 | P35: 51984 | Q35: 9195.412713 | R35: 8633.985513 | S35: 0.1768892873 | T35: 0.2808 | U35: 18.04302306 | V35: 14035.68 | W35: 14597.1072 | Y35: 559.3337149 | Z35: 0.01398334287 | AA35: 0.304137363 | AB35: 2796.668574 | AC35: 6398.744138 | AE35: MO | AF35: MISSOURI | AG35: Reserve Ratio | AH35: 12000 | AI35: 0 | AJ35: 6.975 | AK35: -12 | AL35: 15 | AM35: 3 | AN35: 1.08 | AP35: 38 | AQ35: 27 | AR35: 0.095 | AS35: 7.114624506 | AT35: 27 | AU35: 561.4272 | AW35: 31 | AX35: 0.00980375 | AY35: 0.27 | AZ35: 0.07114624506 | BA35: 837 | BC35: 28 | BD35: NC | BE35: NORTH CAROLINA
A36: MS | B36: Mississippi | C36: Benefit Ratio | D36: 2500.44231 | E36: 140 | F36: 0.162 | G36: 0.054 | H36: 0.01 | I36: 3 | J36: 0.03 | L36: =+'Main Menu'!$M$12 -> 5 | M36: =+'Main Menu'!$M$14 -> 2 | N36: =+'Main Menu'!$M$16 -> 200 | O36: =+'Main Menu'!$L$18 -> 3 | P36: 60648 | Q36: 7501.32693 | R36: 7501.32693 | S36: 0.1236863034 | T36: 0.162 | U36: 4.122876781 | V36: 9824.976 | W36: 9824.976 | Y36: 577.2027493 | Z36: 0.01443006873 | AA36: 0.3847337642 | AB36: 2886.013747 | AC36: 4615.313184 | AE36: MS | AF36: MISSISSIPPI | AG36: Benefit Ratio | AH36: 14000 | AI36: 0 | AJ36: 5.4 | AK36: 0 | AL36: 5.4 | AM36: 3 | AN36: 0.46 | AP36: 5.4 | AQ36: 5.4 | AS36: 5.4 | AT36: 5.4 | AU36: 278.9808 | AW36: 140 | AX36: 0.01 | AY36: 0.162 | AZ36: 0.162 | BA36: 756 | BC36: 29 | BD36: ND | BE36: NORTH DAKOTA
A37: MT | B37: Montana | C37: Reserve Ratio | D37: 4585.79219 | E37: 100.98 | F37: 0.2 | G37: 0.2 | H37: 0.01152396 | I37: 1 | J37: 0.01152396 | L37: =+'Main Menu'!$M$12 -> 5 | M37: =+'Main Menu'!$M$14 -> 2 | N37: =+'Main Menu'!$M$16 -> 200 | O37: =+'Main Menu'!$L$18 -> 3 | P37: 142956 | Q37: 13757.37657 | R37: 12127.67817 | S37: 0.09623504134 | T37: 0.2114 | U37: 8.350865618 | V37: 28591.2 | W37: 30220.8984 | Y37: 843.2704101 | Z37: 0.02108176025 | AA37: 0.3064793661 | AB37: 4216.35205 | AC37: 9541.02452 | AE37: MT | AF37: MONTANA | AG37: Reserve Ratio | AH37: 33000 | AI37: 0 | AJ37: 6.12 | AK37: -10 | AL37: 10 | AM37: 3 | AN37: 1.14 | AP37: 20 | AQ37: 20 | AR37: 0.066 | AS37: 5.310674456 | AT37: 20 | AU37: 1629.6984 | AW37: 100.98 | AX37: 0.01152396 | AY37: 0.2 | AZ37: 0.05310674456 | BA37: 2019.6 | BC37: 30 | BD37: NE | BE37: NEBRASKA
A38: NC | B38: North Carolina | C38: Reserve Ratio | D38: 2144.837966 | E38: 168.9146341 | F38: 0.082 | G38: 0.082 | H38: 0.0257195122 | I38: 1 | J38: 0.0257195122 | L38: =+'Main Menu'!$M$12 -> 5 | M38: =+'Main Menu'!$M$14 -> 2 | N38: =+'Main Menu'!$M$16 -> 200 | O38: =+'Main Menu'!$L$18 -> 3 | P38: 105267.6 | Q38: 6434.513899 | R38: 5897.649139 | S38: 0.06112530255 | T38: 0.0871 | U38: 2.376612048 | V38: 8631.9432 | W38: 9168.80796 | Y38: 401.4445546 | Z38: 0.01003611387 | AA38: 0.3119462953 | AB38: 2007.222773 | AC38: 4427.291126 | AE38: NC | AF38: NORTH CAROLINA | AG38: Reserve Ratio | AH38: 24300 | AI38: 0.06 | AJ38: 5.76 | AK38: -4.2 | AL38: 4 | AM38: 3 | AN38: 0.51 | AP38: 36 | AQ38: 8.2 | AR38: 0 | AS38: 2.216216216 | AT38: 8.2 | AU38: 536.86476 | AW38: 168.9146341 | AX38: 0.0257195122 | AY38: 0.082 | AZ38: 0.02216216216 | BA38: 1399.68 | BC38: 31 | BD38: NH | BE38: NEW HAMPSHIRE
A39: ND | B39: North Dakota | C39: Reserve Ratio | D39: 6044.526657 | E39: 177.3807107 | F39: 0.197 | G39: 0.197 | H39: 0.01812791878 | I39: 1 | J39: 0.01812791878 | L39: =+'Main Menu'!$M$12 -> 5 | M39: =+'Main Menu'!$M$14 -> 2 | N39: =+'Main Menu'!$M$16 -> 200 | O39: =+'Main Menu'!$L$18 -> 3 | P39: 157684.8 | Q39: 18133.57997 | R39: 16067.90909 | S39: 0.114998909 | T39: 0.2101 | U39: 6.343745821 | V39: 31063.9056 | W39: 33129.57648 | Y39: 1125.258142 | Z39: 0.02813145355 | AA39: 0.3102691647 | AB39: 5626.29071 | AC39: 12507.28926 | AE39: ND | AF39: NORTH DAKOTA | AG39: Reserve Ratio | AH39: 36400 | AI39: 0.15 | AJ39: 9.75 | AK39: -17.35 | AL39: 2.35 | AM39: 3 | AN39: 1.31 | AP39: 20 | AQ39: 19.7 | AR39: 0.02 | AS39: 5.295698925 | AT39: 19.7 | AU39: 2065.67088 | AW39: 177.3807107 | AX39: 0.01812791878 | AY39: 0.197 | AZ39: 0.05295698925 | BA39: 3549 | BC39: 32 | BD39: NJ | BE39: NEW JERSEY
A40: NE | B40: Nebraska | C40: Reserve Ratio | D40: 3896.882771 | E40: 24.3 | F40: 0.2 | G40: 0.2 | H40: 0.010287 | I40: 1 | J40: 0.010287 | L40: =+'Main Menu'!$M$12 -> 5 | M40: =+'Main Menu'!$M$14 -> 2 | N40: =+'Main Menu'!$M$16 -> 200 | O40: =+'Main Menu'!$L$18 -> 3 | P40: 38988 | Q40: 11690.64831 | R40: 11363.14911 | S40: 0.2998524755 | T40: 0.2084 | U40: 20.25857879 | V40: 7797.6 | W40: 8125.0992 | Y40: 492.2834646 | Z40: 0.01230708661 | AA40: 0.210545836 | AB40: 2461.417323 | AC40: 9229.230991 | AE40: NE | AF40: NEBRASKA | AG40: Reserve Ratio | AH40: 9000 | AI40: 0 | AJ40: 5.4 | AK40: 0 | AL40: 20 | AM40: 4 | AN40: 0.84 | AP40: 20 | AQ40: 20 | AR40: 0.11 | AS40: 5.249343832 | AT40: 20 | AU40: 327.4992 | AW40: 24.3 | AX40: 0.010287 | AY40: 0.2 | AZ40: 0.05249343832 | BA40: 486 | BC40: 33 | BD40: NM | BE40: NEW MEXICO
A41: NH | B41: New Hampshire | C41: Reserve Ratio | D41: 4093.395036 | E41: 30.92537313 | F41: 0.335 | G41: 0.335 | H41: 0.008294626866 | I41: 1 | J41: 0.008294626866 | L41: =+'Main Menu'!$M$12 -> 5 | M41: =+'Main Menu'!$M$14 -> 2 | N41: =+'Main Menu'!$M$16 -> 200 | O41: =+'Main Menu'!$L$18 -> 3 | P41: 60648 | Q41: 12280.18511 | R41: 11737.8563 | S41: 0.2024829361 | T41: 0.3439422373 | U41: 24.41133753 | V41: 20317.08 | W41: 20859.40881 | Y41: 754.9297217 | Z41: 0.01887324304 | AA41: 0.3073771752 | AB41: 3774.648609 | AC41: 8505.536499 | AE41: NH | AF41: NEW HAMPSHIRE | AG41: Reserve Ratio | AH41: 14000 | AI41: 0.1 | AJ41: 7.5 | AK41: -7.5 | AL41: 26 | AM41: 3 | AN41: 0.8942237316 | AP41: 49 | AQ41: 33.5 | AR41: 0.055 | AS41: 8.921438083 | AT41: 33.5 | AU41: 542.3288088 | AW41: 30.92537313 | AX41: 0.008294626866 | AY41: 0.335 | AZ41: 0.08921438083 | BA41: 1050 | BC41: 34 | BD41: NV | BE41: NEVADA
A42: NJ | B42: New Jersey | C42: Reserve Ratio | D42: 6963.94945 | E42: 61.42857143 | F42: 0.52 | G42: 0.52 | H42: 0.006691071429 | I42: 1 | J42: 0.006691071429 | L42: =+'Main Menu'!$M$12 -> 5 | M42: =+'Main Menu'!$M$14 -> 2 | N42: =+'Main Menu'!$M$16 -> 200 | O42: =+'Main Menu'!$L$18 -> 3 | P42: 149020.8 | Q42: 20891.84835 | R42: 18582.02595 | S42: 0.1401941766 | T42: 0.5355 | U42: 20.95242565 | V42: 77490.816 | W42: 79800.6384 | Y42: 1287.077575 | Z42: 0.03217693938 | AA42: 0.3080334381 | AB42: 6435.387877 | AC42: 14456.46047 | AE42: NJ | AF42: NEW JERSEY | AG42: Reserve Ratio | AH42: 34400 | AI42: 0.4 | AJ42: 5.4 | AK42: -35 | AL42: 17 | AM42: 4 | AN42: 1.55 | AP42: 28 | AQ42: 28 | AR42: 0.047 | AS42: 7.472644782 | AT42: 52 | AU42: 2309.8224 | AW42: 61.42857143 | AX42: 0.006691071429 | AY42: 0.52 | AZ42: 0.07472644782 | BA42: 1857.6 | BC42: 35 | BD42: NY | BE42: NEW YORK
A43: NM | B43: New Mexico | C43: Benefit Ratio | D43: 4952.208765 | E43: 196.4625 | F43: 0.192 | G43: 0.064 | H43: 0.007921875 | I43: 3 | J43: 0.023765625 | L43: =+'Main Menu'!$M$12 -> 5 | M43: =+'Main Menu'!$M$14 -> 2 | N43: =+'Main Menu'!$M$16 -> 200 | O43: =+'Main Menu'!$L$18 -> 3 | P43: 107433.6 | Q43: =+D43*O43 -> 14856.6263 | R43: =IF(AG43="Reserve Ratio",Q43-AU43,Q43) -> 14856.6263 | S43: =+Q43/P43 -> 0.1382865909 | T43: 0.192 | U43: 5.818765168 | V43: =+(F43)*(P43) -> 20627.2512 | W43: 20627.2512 | Y43: =+U43*E43 -> 1143.169152 | Z43: =+AB43/(N43*1000) -> 0.02857922879 | AA43: 0.3847337642 | AB43: 5715.845759 | AC43: =+Q43-AB43 -> 9140.780537 | AE43: NM | AF43: NEW MEXICO | AG43: Benefit Ratio | AH43: 24800 | AI43: 0.33 | AJ43: 5.4 | AK43: 0 | AL43: 6.4 | AM43: 3 | AN43: 1.05 | AP43: 30 | AQ43: =IF(AT43>AP43,AP43,AT43) -> 6.4 | AS43: =IF(C43="Reserve Ratio",AQ43/($AS$8+AR43),AQ43) -> 6.4 | AT43: =+AL43-AK43 -> 6.4 | AU43: =+((AN43/100)*P43) -> 1128.0528 | AW43: 196.4625 | AX43: =+((AJ43-AI43)/100)/AS43 -> 0.007921875 | AY43: 0.192 | AZ43: 0.192 | BA43: 1339.2 | BC43: 36 | BD43: OH | BE43: OHIO
A44: NV | B44: Nevada | C44: Reserve Ratio | D44: 4912.419252 | E44: 89.26666667 | F44: 0.224 | G44: 0.224 | H44: 0.01071486111 | I44: 1 | J44: 0.01071486111 | L44: =+'Main Menu'!$M$12 -> 5 | M44: =+'Main Menu'!$M$14 -> 2 | N44: =+'Main Menu'!$M$16 -> 200 | O44: =+'Main Menu'!$L$18 -> 3 | P44: 135158.4 | Q44: 14737.25776 | R44: 12236.82736 | S44: 0.1090369356 | T44: 0.2425 | U44: =IF(S44>T44,T44/(J44),S44/J44) -> 10.17623415 | V44: 30275.4816 | W44: =IF(AG44="Reserve Ratio",V44+AU44,V44) -> 32775.912 | Y44: 908.3985021 | Z44: 0.02270996255 | AA44: 0.308197942 | AB44: 4541.992511 | AC44: 10195.26524 | AE44: NV | AF44: NEVADA | AG44: Reserve Ratio | AH44: 31200 | AI44: 0.25 | AJ44: 5.4 | AK44: -17.2 | AL44: 5.2 | AM44: 3 | AN44: 1.85 | AP44: 18 | AQ44: 18 | AR44: 0.045 | AS44: 4.806408545 | AT44: 22.4 | AU44: 2500.4304 | AW44: 89.26666667 | AX44: 0.01071486111 | AY44: =IF(AG44="Benefit Ratio",(AL44/100)*AM44,(AT44/100)) -> 0.224 | AZ44: 0.04806408545 | BA44: 1684.8 | BC44: 37 | BD44: OK | BE44: OKLAHOMA
A45: NY | B45: New York | C45: Reserve Ratio | D45: 5035.281235 | E45: 24.87272727 | F45: 0.33 | G45: 0.33 | H45: 0.008232 | I45: 1 | J45: 0.008232 | L45: =+'Main Menu'!$M$12 -> 5 | M45: =+'Main Menu'!$M$14 -> 2 | N45: =+'Main Menu'!$M$16 -> 200 | O45: =+'Main Menu'!$L$18 -> 3 | P45: 49384.8 | Q45: 15105.84371 | R45: 14044.07051 | S45: 0.3058804269 | T45: 0.3515 | U45: 37.15748626 | V45: 16296.984 | W45: 17358.7572 | Y45: 924.2080219 | Z45: 0.02310520055 | AA45: 0.3059107587 | AB45: 4621.040109 | AC45: 10484.8036 | AE45: NY | AF45: NEW YORK | AG45: Reserve Ratio | AH45: 11400 | AI45: 0 | AJ45: 7.2 | AK45: -21 | AL45: 12 | AM45: 5 | AN45: 2.15 | AP45: 66 | AQ45: 33 | AR45: 0.073 | AS45: 8.746355685 | AT45: 33 | AU45: 1061.7732 | AW45: 24.87272727 | AX45: 0.008232 | AY45: 0.33 | AZ45: 0.08746355685 | BA45: 820.8 | BC45: 38 | BD45: OR | BE45: OREGON
A46: OH | B46: Ohio | C46: Reserve Ratio | D46: 5057.741415 | E46: 24.86764706 | F46: 0.34 | G46: 0.34 | H46: 0.009818794118 | I46: 1 | J46: 0.009818794118 | L46: =+'Main Menu'!$M$12 -> 5 | M46: =+'Main Menu'!$M$14 -> 2 | N46: =+'Main Menu'!$M$16 -> 200 | O46: =+'Main Menu'!$L$18 -> 3 | P46: 41154 | Q46: 15173.22425 | R46: 14226.68225 | S46: 0.3686937903 | T46: 0.363 | U46: 36.96991664 | V46: 13992.36 | W46: 14938.902 | Y46: 919.3548387 | Z46: 0.02298387097 | AA46: 0.3029530256 | AB46: 4596.774194 | AC46: 10576.45005 | AE46: OH | AF46: OHIO | AG46: Reserve Ratio | AH46: 9500 | AI46: 0.3 | AJ46: 9.2 | AK46: -20 | AL46: 14 | AM46: 3 | AN46: 2.3 | AP46: 40 | AQ46: 34 | AR46: 0.051 | AS46: 9.064249533 | AT46: 34 | AU46: 946.542 | AW46: 24.86764706 | AX46: 0.009818794118 | AY46: 0.34 | AZ46: 0.09064249533 | BA46: 874 | BC46: 39 | BD46: PA | BE46: PENNSYLVANIA
A47: OK | B47: Oklahoma | C47: Benefit Wage | D47: 5549.658703 | E47: 177.7090909 | F47: 0.3 | G47: 0.1 | H47: 0.009818181818 | I47: 3 | J47: 0.02945454545 | L47: =+'Main Menu'!$M$12 -> 5 | M47: =+'Main Menu'!$M$14 -> 2 | N47: =+'Main Menu'!$M$16 -> 200 | O47: =+'Main Menu'!$L$18 -> 3 | P47: 78409.2 | Q47: 16648.97611 | R47: 16648.97611 | S47: 0.2123344723 | T47: 0.3 | U47: 7.208886407 | V47: 23522.76 | W47: 23522.76 | Y47: 1281.08465 | Z47: 0.03202711625 | AA47: 0.3847337642 | AB47: 6405.423249 | AC47: 10243.55286 | AE47: OK | AF47: OKLAHOMA | AG47: Benefit Ratio | AH47: 18100 | AI47: 0.1 | AJ47: 5.5 | AK47: 0 | AL47: 10 | AM47: 3 | AN47: 1.04 | AP47: 5.5 | AQ47: 5.5 | AS47: 5.5 | AT47: 10 | AU47: 815.45568 | AW47: 177.7090909 | AX47: 0.009818181818 | AY47: 0.3 | AZ47: 0.3 | BA47: 995.5 | BC47: 40 | BD47: PR | BE47: PUERTO RICO
A48: OR | B48: Oregon | C48: Benefit Ratio | D48: 5886.435732 | E48: 81.2 | F48: 0.675 | G48: 0.225 | H48: 0.002 | I48: 3 | J48: 0.006 | L48: =+'Main Menu'!$M$12 -> 5 | M48: =+'Main Menu'!$M$14 -> 2 | N48: =+'Main Menu'!$M$16 -> 200 | O48: =+'Main Menu'!$L$18 -> 3 | P48: 175879.2 | Q48: 17659.30719 | R48: 17659.30719 | S48: 0.1004058876 | T48: 0.675 | U48: 16.73431461 | V48: 118718.46 | W48: 118718.46 | Y48: 1358.826346 | Z48: 0.03397065865 | AA48: 0.3847337642 | AB48: 6794.131731 | AC48: 10865.17546 | AE48: OR | AF48: OREGON | AG48: Benefit Ratio | AH48: 40600 | AI48: 0.9 | AJ48: 5.4 | AK48: 0 | AL48: 22.5 | AM48: 3 | AN48: 1.91 | AP48: 30 | AQ48: 22.5 | AS48: 22.5 | AT48: 22.5 | AU48: 3359.29272 | AW48: 81.2 | AX48: 0.002 | AY48: 0.675 | AZ48: 0.675 | BA48: 2192.4 | BC48: 41 | BD48: RI | BE48: RHODE ISLAND
A49: PA | B49: Pennsylvania | C49: Benefit Ratio | D49: 5197.148273 | E49: 80.02592593 | F49: 0.324 | G49: 0.108 | H49: 0.008002592593 | I49: 3 | J49: 0.02400777778 | L49: =+'Main Menu'!$M$12 -> 5 | M49: =+'Main Menu'!$M$14 -> 2 | N49: =+'Main Menu'!$M$16 -> 200 | O49: =+'Main Menu'!$L$18 -> 3 | P49: 43320 | Q49: 15591.44482 | R49: 15591.44482 | S49: 0.3599133153 | T49: 0.324 | U49: 13.49562642 | V49: 14035.68 | W49: 14035.68 | Y49: 1080 | Z49: 0.027 | AA49: 0.3463437842 | AB49: 5400 | AC49: 10191.44482 | AE49: PA | AF49: PENNSYLVANIA | AG49: Benefit Ratio | AH49: 10000 | AI49: 2.3905 | AJ49: 11.0333 | AK49: 0 | AL49: 10.8 | AM49: 3 | AN49: 5.15 | AP49: 10.8 | AQ49: 10.8 | AS49: 10.8 | AT49: 10.8 | AU49: 2230.98 | AW49: 80.02592593 | AX49: 0.008002592593 | AY49: 0.324 | AZ49: 0.324 | BA49: 1103.33 | BC49: 42 | BD49: SC | BE49: SOUTH CAROLINA
A50: PR | B50: Puerto Rico | C50: Reserve Ratio | D50: 2225.173665 | E50: 14 | F50: 0.2 | G50: 0.2 | H50: 0.0074 | I50: 1 | J50: 0.0074 | L50: =+'Main Menu'!$M$12 -> 5 | M50: =+'Main Menu'!$M$14 -> 2 | N50: =+'Main Menu'!$M$16 -> 200 | O50: =+'Main Menu'!$L$18 -> 3 | P50: 30324 | Q50: 6675.520995 | R50: 5820.384195 | S50: 0.2201398561 | T50: 0.2282 | U50: 29.7486292 | V50: 6064.8 | W50: 6919.9368 | Y50: 416.4808088 | Z50: 0.01041202022 | AA50: 0.3119462953 | AB50: 2082.404044 | AC50: 4593.116951 | AE50: PR | AF50: PUERTO RICO | AG50: Reserve Ratio | AH50: 7000 | AI50: 1.4 | AJ50: 5.4 | AK50: -10 | AL50: 10 | AM50: 3 | AN50: 2.82 | AP50: 22 | AQ50: 20 | AR50: 0 | AS50: 5.405405405 | AT50: 20 | AU50: 855.1368 | AW50: 14 | AX50: 0.0074 | AY50: 0.2 | AZ50: 0.05405405405 | BA50: 378 | BC50: 43 | BD50: SD | BE50: SOUTH DAKOTA
A51: RI | B51: Rhode Island | C51: Reserve Ratio | D51: 5130.63318 | E51: 81.184 | F51: 0.41 | G51: 0.41 | H51: 0.0129688 | I51: 1 | J51: 0.0129688 | L51: =+'Main Menu'!$M$12 -> 5 | M51: =+'Main Menu'!$M$14 -> 2 | N51: =+'Main Menu'!$M$16 -> 200 | O51: =+'Main Menu'!$L$18 -> 3 | P51: 102235.2 | Q51: 15391.89954 | R51: 12866.6901 | S51: 0.1505538165 | T51: 0.4347 | U51: 11.60892423 | V51: 41916.432 | W51: 44441.64144 | Y51: 942.4589043 | Z51: 0.02356147261 | AA51: 0.306154189 | AB51: 4712.294522 | AC51: 10679.60502 | AE51: RI | AF51: RHODE ISLAND | AG51: Reserve Ratio | AH51: 23600 | AI51: 1.1 | AJ51: 9.7 | AK51: -24 | AL51: 17 | AM51: 3 | AN51: 2.47 | AP51: 25 | AQ51: 25 | AR51: 0.07 | AS51: 6.631299735 | AT51: 41 | AU51: 2525.20944 | AW51: 81.184 | AX51: 0.0129688 | AY51: 0.41 | AZ51: 0.06631299735 | BA51: 2289.2 | BC51: 44 | BD51: TN | BE51: TENNESSEE
A52: SC | B52: South Carolina | C52: Benefit Ratio | D52: 3204.783381 | E52: 50.4 | F52: 0.6 | G52: 0.2 | H52: 0.0036 | I52: 3 | J52: 0.0108 | L52: =+'Main Menu'!$M$12 -> 5 | M52: =+'Main Menu'!$M$14 -> 2 | N52: =+'Main Menu'!$M$16 -> 200 | O52: =+'Main Menu'!$L$18 -> 3 | P52: 60648 | Q52: 9614.350142 | R52: 9614.350142 | S52: 0.1585270766 | T52: 0.6 | U52: 14.67843302 | V52: 36388.8 | W52: 36388.8 | Y52: 739.7930241 | Z52: 0.0184948256 | AA52: 0.3847337642 | AB52: 3698.965121 | AC52: 5915.385021 | AE52: SC | AF52: SOUTH CAROLINA | AG52: Benefit Ratio | AH52: 14000 | AI52: 0 | AJ52: 5.4 | AK52: 0 | AL52: 20 | AM52: 3 | AN52: 1.35 | AP52: 15 | AQ52: 15 | AS52: 15 | AT52: 20 | AU52: 818.748 | AW52: 50.4 | AX52: 0.0036 | AY52: 0.6 | AZ52: 0.6 | BA52: 756 | BC52: 45 | BD52: TX | BE52: TEXAS
A53: SD | B53: South Dakota | C53: Reserve Ratio | D53: 4931.041144 | E53: 163.0813953 | F53: 0.086 | G53: 0.086 | H53: 0.04025936047 | I53: 1 | J53: 0.04025936047 | L53: =+'Main Menu'!$M$12 -> 5 | M53: =+'Main Menu'!$M$14 -> 2 | N53: =+'Main Menu'!$M$16 -> 200 | O53: =+'Main Menu'!$L$18 -> 3 | P53: 64980 | Q53: 14793.12343 | R53: 14442.23143 | S53: 0.2276565625 | T53: 0.0914 | U53: 2.270279481 | V53: 5588.28 | W53: 5939.172 | Y53: 370.2403457 | Z53: 0.009256008642 | AA53: 0.1251393417 | AB53: 1851.201728 | AC53: 12941.9217 | AE53: SD | AF53: SOUTH DAKOTA | AG53: Reserve Ratio | AH53: 15000 | AI53: 0 | AJ53: 9.35 | AK53: -7 | AL53: 1.6 | AM53: 3 | AN53: 0.54 | AP53: 26 | AQ53: 8.6 | AR53: 0.003 | AS53: 2.322441264 | AT53: 8.6 | AU53: 350.892 | AW53: 163.0813953 | AX53: 0.04025936047 | AY53: 0.086 | AZ53: 0.02322441264 | BA53: 1402.5 | BC53: 46 | BD53: UT | BE53: UTAH
A54: TN | B54: Tennessee | C54: Reserve Ratio | D54: 3482.891141 | E54: 29.1375 | F54: 0.24 | G54: 0.24 | H54: 0.015775875 | I54: 1 | J54: 0.015775875 | L54: =+'Main Menu'!$M$12 -> 5 | M54: =+'Main Menu'!$M$14 -> 2 | N54: =+'Main Menu'!$M$16 -> 200 | O54: =+'Main Menu'!$L$18 -> 3 | P54: =+((L54-M54)*(AH54))+(M54*(AH54*$P$7)) -> 30324 | Q54: 10448.67342 | R54: 10112.4433 | S54: 0.3445677821 | T54: 0.2510879213 | U54: 15.91594262 | V54: 7277.76 | W54: 7613.990124 | Y54: 463.750778 | Z54: 0.01159376945 | AA54: 0.2219184959 | AB54: 2318.75389 | AC54: 8129.919534 | AE54: TN | AF54: TENNESSEE | AG54: Reserve Ratio | AH54: 7000 | AI54: 0.01 | AJ54: 10 | AK54: -10 | AL54: 14 | AM54: 3 | AN54: 1.108792126 | AP54: 24 | AQ54: 24 | AR54: 0.09 | AS54: 6.332453826 | AT54: 24 | AU54: 336.2301242 | AW54: 29.1375 | AX54: 0.015775875 | AY54: 0.24 | AZ54: 0.06332453826 | BA54: 700 | BC54: 47 | BD54: VA | BE54: VIRGINIA
A55: TX | B55: Texas | C55: Benefit Ratio | D55: 5366.141258 | E55: 65.45454545 | F55: 0.2475 | G55: 0.0825 | H55: 0.007272727273 | I55: 3 | J55: 0.02181818182 | L55: =+'Main Menu'!$M$12 -> 5 | M55: =+'Main Menu'!$M$14 -> 2 | N55: =+'Main Menu'!$M$16 -> 200 | O55: =+'Main Menu'!$L$18 -> 3 | P55: 38988 | Q55: 16098.42377 | R55: 16098.42377 | S55: 0.4129071451 | T55: 0.2475 | U55: 11.34375 | V55: 9649.53 | W55: 9649.53 | Y55: 742.5 | Z55: 0.0185625 | AA55: 0.2306126396 | AB55: 3712.5 | AC55: 12385.92377 | AE55: TX | AF55: TEXAS | AG55: Benefit Ratio | AH55: 9000 | AI55: 0 | AJ55: 6 | AK55: 0 | AL55: 8.25 | AM55: 3 | AN55: 1.93 | AP55: 8.25 | AQ55: 8.25 | AS55: 8.25 | AT55: 8.25 | AU55: 752.4684 | AW55: 65.45454545 | AX55: 0.007272727273 | AY55: 0.2475 | AZ55: 0.2475 | BA55: 540 | BC55: 48 | BD55: VI | BE55: VIRGIN ISLANDS
A56: UT | B56: Utah | C56: Benefit Ratio | D56: 4492.447631 | E56: 308.875 | F56: 0.32 | G56: 0.08 | H56: 0.00875 | I56: 4 | J56: 0.035 | L56: =+'Main Menu'!$M$12 -> 5 | M56: =+'Main Menu'!$M$14 -> 2 | N56: =+'Main Menu'!$M$16 -> 200 | O56: =+'Main Menu'!$L$18 -> 3 | P56: 152919.6 | Q56: 13477.34289 | R56: 13477.34289 | S56: 0.08813352176 | T56: 0.32 | U56: 2.518100622 | V56: 48934.272 | W56: 48934.272 | Y56: 777.7783295 | Z56: 0.01944445824 | AA56: 0.2885503232 | AB56: 3888.891648 | AC56: 9588.451246 | AE56: UT | AF56: UTAH | AG56: Benefit Ratio | AH56: 35300 | AI56: 0 | AJ56: 7 | AK56: 0 | AL56: 8 | AM56: 4 | AN56: 0.41 | AP56: 8 | AQ56: 8 | AS56: 8 | AT56: 8 | AU56: 626.97036 | AW56: 308.875 | AX56: 0.00875 | AY56: 0.32 | AZ56: 0.32 | BA56: 2471 | BC56: 49 | BD56: VT | BE56: VERMONT
A57: VA | B57: Virginia | C57: Benefit Ratio | D57: 4379.100966 | E57: 323.3 | F57: 0.2 | G57: 0.05 | H57: 0.0122 | I57: 4 | J57: 0.0488 | L57: =+'Main Menu'!$M$12 -> 5 | M57: =+'Main Menu'!$M$14 -> 2 | N57: =+'Main Menu'!$M$16 -> 200 | O57: =+'Main Menu'!$L$18 -> 3 | P57: 114798 | Q57: 13137.3029 | R57: 13137.3029 | S57: 0.1144384301 | T57: 0.2 | U57: 2.345049797 | V57: 22959.6 | W57: 22959.6 | Y57: 758.1545995 | Z57: 0.01895386499 | AA57: 0.2885503232 | AB57: 3790.772997 | AC57: 9346.529902 | AE57: VA | AF57: VIRGINIA | AG57: Benefit Ratio | AH57: 26500 | AI57: 0.1 | AJ57: 6.2 | AK57: 0 | AL57: 5 | AM57: 4 | AN57: 1.13 | AP57: 5 | AQ57: 5 | AS57: 5 | AT57: 5 | AU57: 1297.2174 | AW57: 323.3 | AX57: 0.0122 | AY57: 0.2 | AZ57: 0.2 | BA57: 1643 | BC57: 50 | BD57: WA | BE57: WASHINGTON
A58: VI | B58: Virgin Islands | C58: Reserve Ratio | D58: 7583.801123 | E58: 0.08888888889 | F58: 0.09 | G58: 0.09 | H58: 4.111111111e-05 | I58: 1 | J58: 4.111111111e-05 | L58: =+'Main Menu'!$M$12 -> 5 | M58: =+'Main Menu'!$M$14 -> 2 | N58: =+'Main Menu'!$M$16 -> 200 | O58: =+'Main Menu'!$L$18 -> 3 | P58: 34656 | Q58: 22751.40337 | R58: 21954.31537 | S58: 0.6564924795 | T58: 0.113 | U58: 2748.648649 | V58: 3119.04 | W58: 3916.128 | Y58: 244.3243243 | Z58: 0.006108108108 | AA58: 0.05369434148 | AB58: 1221.621622 | AC58: 21529.78175 | AE58: VI | AF58: VIRGIN ISLANDS | AG58: Reserve Ratio | AH58: 8000 | AI58: 2.49 | AJ58: 2.5 | AK58: 0 | AL58: 9 | AM58: 3 | AN58: 2.3 | AP58: 9 | AQ58: 9 | AR58: 0 | AS58: 2.432432432 | AT58: 9 | AU58: 797.088 | AW58: 0.08888888889 | AX58: 4.111111111e-05 | AY58: 0.09 | AZ58: 0.02432432432 | BA58: 200 | BC58: 51 | BD58: WI | BE58: WISCONSIN
A59: VT | B59: Vermont | C59: Benefit Ratio | D59: 4012.387779 | E59: 139.7922078 | F59: 0.231 | G59: 0.077 | H59: 0.008961038961 | I59: 3 | J59: 0.02688311688 | L59: =+'Main Menu'!$M$12 -> 5 | M59: =+'Main Menu'!$M$14 -> 2 | N59: =+'Main Menu'!$M$16 -> 200 | O59: =+'Main Menu'!$L$18 -> 3 | P59: 67579.2 | Q59: 12037.16334 | R59: 12037.16334 | S59: 0.1781193524 | T59: 0.231 | U59: 6.625695716 | V59: 15610.7952 | W59: 15610.7952 | Y59: 926.2206323 | Z59: 0.02315551581 | AA59: 0.3847337642 | AB59: 4631.103162 | AC59: 7406.060176 | AE59: VT | AF59: VERMONT | AG59: Benefit Ratio | AH59: 15600 | AI59: 0.8 | AJ59: 7.7 | AK59: 0 | AL59: 7.7 | AM59: 3 | AN59: 3.3 | AP59: 21 | AQ59: 7.7 | AS59: 7.7 | AT59: 7.7 | AU59: 2230.1136 | AW59: 139.7922078 | AX59: 0.008961038961 | AY59: 0.231 | AZ59: 0.231 | BA59: 1201.2 | BC59: 52 | BD59: WV | BE59: WEST VIRGINIA
A60: WA | B60: Washington | C60: Benefit Ratio | D60: 6670.425858 | E60: 471.7894737 | F60: 0.228 | G60: 0.057 | H60: 0.009473684211 | I60: 4 | J60: 0.03789473684 | L60: =+'Main Menu'!$M$12 -> 5 | M60: =+'Main Menu'!$M$14 -> 2 | N60: =+'Main Menu'!$M$16 -> 200 | O60: =+'Main Menu'!$L$18 -> 3 | P60: 215733.6 | Q60: 20011.27757 | R60: 20011.27757 | S60: 0.09275920661 | T60: 0.228 | U60: 2.447812397 | V60: 49187.2608 | W60: 49187.2608 | Y60: 1154.852122 | Z60: 0.02887130306 | AA60: 0.2885503232 | AB60: 5774.260611 | AC60: 14237.01696 | AE60: WA | AF60: WASHINGTON | AG60: Benefit Ratio | AH60: 49800 | AI60: 0 | AJ60: 5.4 | AK60: 0 | AL60: 5.7 | AM60: 4 | AN60: 1 | AP60: 5.7 | AQ60: 5.7 | AS60: 5.7 | AT60: 5.7 | AU60: 2157.336 | AW60: 471.7894737 | AX60: 0.009473684211 | AY60: 0.228 | AZ60: 0.228 | BA60: 2689.2 | BC60: 53 | BD60: WY | BE60: WYOMING
A61: WI | B61: Wisconsin | C61: Reserve Ratio | D61: 3468.764634 | E61: 71.33333333 | F61: 0.21 | G61: 0.21 | H61: 0.01917338095 | I61: 1 | J61: 0.01917338095 | L61: =+'Main Menu'!$M$12 -> 5 | M61: =+'Main Menu'!$M$14 -> 2 | N61: =+'Main Menu'!$M$16 -> 200 | O61: =+'Main Menu'!$L$18 -> 3 | P61: 60648 | Q61: 10406.2939 | R61: 9448.055503 | S61: 0.1715851125 | T61: 0.2258 | U61: 8.949131764 | V61: 12736.08 | W61: 13694.3184 | Y61: 638.3713991 | Z61: 0.01595928498 | AA61: 0.3067237026 | AB61: 3191.856996 | AC61: 7214.436907 | AE61: WI | AF61: WISCONSIN | AG61: Reserve Ratio | AH61: 14000 | AI61: 0 | AJ61: 10.7 | AK61: -6 | AL61: 15 | AM61: 3 | AN61: 1.58 | AP61: 23 | AQ61: 21 | AR61: 0.063 | AS61: 5.580653734 | AT61: 21 | AU61: 958.2384 | AW61: 71.33333333 | AX61: 0.01917338095 | AY61: 0.21 | AZ61: 0.05580653734 | BA61: 1498
A62: WV | B62: West Virginia | C62: Reserve Ratio | D62: 3771.751818 | E62: 48 | F62: 0.18 | G62: 0.18 | H62: 0.01532 | I62: 1 | J62: 0.01532 | L62: =+'Main Menu'!$M$12 -> 5 | M62: =+'Main Menu'!$M$14 -> 2 | N62: =+'Main Menu'!$M$16 -> 200 | O62: =+'Main Menu'!$L$18 -> 3 | P62: 51984 | Q62: 11315.25545 | R62: 9896.092255 | S62: 0.2176680412 | T62: 0.2073 | U62: 13.53133159 | V62: 9357.12 | W62: 10776.2832 | Y62: 649.5039164 | Z62: 0.01623759791 | AA62: 0.287003647 | AB62: 3247.519582 | AC62: 8067.735873 | AE62: WV | AF62: WEST VIRGINIA | AG62: Reserve Ratio | AH62: 12000 | AI62: 1.5 | AJ62: 7.5 | AK62: 0 | AL62: 18 | AM62: 3 | AN62: 2.73 | AP62: 15 | AQ62: 15 | AR62: 0.13 | AS62: 3.916449086 | AT62: 18 | AU62: 1419.1632 | AW62: 48 | AX62: 0.01532 | AY62: 0.18 | AZ62: 0.03916449086 | BA62: 900
A63: WY | B63: Wyoming | C63: Benefit Ratio | D63: 4703.425414 | E63: 244.2307692 | F63: 0.2652 | G63: 0.0884 | H63: 0.009615384615 | I63: 3 | J63: 0.02884615385 | L63: =+'Main Menu'!$M$12 -> 5 | M63: =+'Main Menu'!$M$14 -> 2 | N63: =+'Main Menu'!$M$16 -> 200 | O63: =+'Main Menu'!$L$18 -> 3 | P63: 110032.8 | Q63: 14110.27624 | R63: 14110.27624 | S63: 0.1282370006 | T63: 0.2652 | U63: 4.445549355 | V63: 29180.69856 | W63: 29180.69856 | Y63: 1085.739939 | Z63: 0.02714349847 | AA63: 0.3847337642 | AB63: 5428.699693 | AC63: 8681.57655 | AE63: WY | AF63: WYOMING | AG63: Benefit Ratio | AH63: 25400 | AI63: 0 | AJ63: 8.5 | AK63: 0 | AL63: 8.84 | AM63: 3 | AN63: 1.45 | AP63: 10 | AQ63: 8.84 | AS63: 8.84 | AT63: 8.84 | AU63: 1595.4756 | AW63: 244.2307692 | AX63: 0.009615384615 | AY63: 0.2652 | AZ63: 0.2652 | BA63: 2159
B68: Calculation of Maximum Layoffs to Reach Maximum Tax Rate
C70: Input Data | L70: OUTPUTS | O70: Est. Num. of Layoffs
D71: Average Benefits per | E71: Max Intervl in Exp. Tax Tabl | F71: Max Intervl in Exp. Tax Tabl | G71: Taxable Wages | H71: Tot Bens Needed | I71: Tot Bens needed - | J71: Tot Bens Needed | L71: Est. of layoffs to | O71: to Reach Max tax Rate | P71: Proportion of
C72: Exper. Rating | D72: First Payment | E72: MAXBENRATIO (%) | F72: MAXBENRATIO (%) | G72: Input | H72: to reach Max interval | I72: with cont. for Res. Rat | J72: to reach Max interval | L72: reach max. | M72: Final Layoffs Include: | N72: Estimate of Layoffs in each | O72: next year for employer | P72: Employees Laid off
A73: ABB. | B73: STATE | C73: Method | D73: Tot Ben / First Pays | E73: BR: Max Intrl* Yrs | G73: > Base + < Base | H73: over yrs in Frmla | I73: (Tot Bens + Avg. Cont.) | J73: over yrs in Frmla | K73: Include. Cont for RR | L73: next year for lowest | M73: Num of Employees | N73: of the years in ER Formula | O73: already at Max.(exactly) | P73: to Reach max:
D74: From 394 report | E74: RR: Diff in Max Min Exp Rt | H74: (Max Intrvl. * Tax Wages) | J74: for Input Employer | L74: rated employer
A75: AK | B75: Alaska | C75: Payroll Decline | D75: 4530.512491 | E75: =+AY11 -> NA | F75: NA | G75: =+((L11-M11)*(AH11))+(M11*(AH11*0.666)) -> 172846.8 | H75: =+E75*G75 ->  | I75: =IF(C75="Reserve Ratio",H75-AU11,H75) ->  | J75: =+F75*G75 ->  | K75: =IF(C75="Reserve Ratio",AU11,J75) ->  | L75: =ROUNDUP(I75/D75,0) ->  | M75: NA | N75: =+M75/AM11 ->  | O75: =+K75/D75 ->  | P75: =+M75/L11 -> 
A76: AL | B76: Alabama | C76: Benefit Ratio | D76: 2876.040375 | E76: =+AY12 -> 0.216 | F76: =+AT12/100 -> 0.072 | G76: 34656 | H76: 7485.696 | I76: =IF(C76="Reserve Ratio",H76+AU12,H76) -> 7485.696 | J76: =+F76*G76 -> 2495.232 | K76: 2495.232 | L76: =ROUNDUP(I76/D76,0) -> 3 | M76: =+IF(L76>L12,L12,L76) -> 3 | N76: =ROUNDUP(M76/AM12,0) -> 1 | O76: 0.867592827 | P76: 0.6
A77: AR | B77: Arkansas | C77: Reserve Ratio | D77: 2558.88651 | E77: =+AY13 -> 0.0995 | F77: =+AT13/100 -> 0.0995 | G77: 43320 | H77: 4310.34 | I77: 4947.144 | J77: =+F77*G77 -> 4310.34 | K77: 636.804 | L77: 2 | M77: 2 | N77: =ROUNDUP(M77/AM13,0) -> 1 | O77: 0.2488598059 | P77: 0.4
A78: AZ | B78: Arizona | C78: Reserve Ratio | D78: 3399.526965 | E78: 0.26 | F78: 0.26 | G78: 30324 | H78: 7884.24 | I78: 8354.262 | J78: 7884.24 | K78: 470.022 | L78: 3 | M78: 3 | N78: =ROUNDUP(M78/AM14,0) -> 1 | O78: 0.1382610007 | P78: 0.6
A79: CA | B79: California | C79: Reserve Ratio | D79: 5481.920827 | E79: 0.4 | F79: 0.4 | G79: 30324 | H79: 12129.6 | I79: 13394.1108 | J79: 12129.6 | K79: 1264.5108 | L79: 3 | M79: 3 | N79: 1 | O79: 0.2306692927 | P79: 0.6
A80: CO | B80: Colorado | C80: Reserve Ratio | D80: 5791.491394 | E80: 0.45 | F80: 0.45 | G80: 56749.2 | H80: 25537.14 | I80: 26405.40276 | J80: 25537.14 | K80: 868.26276 | L80: 5 | M80: 5 | N80: 2 | O80: 0.1499204092 | P80: 1
A81: CT | B81: Connecticut | C81: Benefit Ratio | D81: 5575.889366 | E81: 0.162 | F81: 0.054 | G81: 64980 | H81: 10526.76 | I81: 10526.76 | J81: 3508.92 | K81: 3508.92 | L81: 2 | M81: 2 | N81: 1 | O81: 0.6293022996 | P81: 0.4
A82: DC | B82: District of Columbia | C82: Reserve Ratio | D82: 5839.165968 | E82: 0.18 | F82: 0.18 | G82: 38988 | H82: 7017.84 | I82: 7976.9448 | J82: 7017.84 | K82: 959.1048 | L82: 2 | M82: 2 | N82: 1 | O82: 0.1642537317 | P82: 0.4
A83: DE | B83: Delaware | C83: Benefit Wage | D83: 4273.154223 | E83: 0.246 | F83: 0.082 | G83: 71478 | H83: 17583.588 | I83: 17583.588 | J83: 5861.196 | K83: 5861.196 | L83: 5 | M83: 5 | N83: 2 | O83: 1.371632217 | P83: 1
A84: FL | B84: Florida | C84: Benefit Ratio | D84: 2270.640947 | E84: 0.162 | F84: 0.054 | G84: 30324 | H84: 4912.488 | I84: 4912.488 | J84: 1637.496 | K84: 1637.496 | L84: 3 | M84: 3 | N84: 1 | O84: 0.721160253 | P84: 0.6
A85: GA | B85: Georgia | C85: Reserve Ratio | D85: 2182.804681 | E85: 0.2445 | F85: 0.2445 | G85: 41154 | H85: 10062.153 | I85: 10621.8474 | J85: 10062.153 | K85: 559.6944 | L85: 5 | M85: 5 | N85: 2 | O85: 0.2564106651 | P85: 1
A86: HI | B86: Hawaii | C86: Reserve Ratio | D86: 6905.236551 | E86: 0.17 | F86: 0.17 | G86: 202737.6 | H86: 34465.392 | I86: 36715.77936 | J86: 34465.392 | K86: 2250.38736 | L86: 6 | M86: 5 | N86: 2 | O86: 0.3258957667 | P86: 1
A87: IA | B87: Iowa | C87: Benefit Ratio | D87: 4893.997084 | E87: 1.05 | F87: 0.21 | G87: 129526.8 | H87: 136003.14 | I87: 136003.14 | J87: 27200.628 | K87: 27200.628 | L87: 28 | M87: 5 | N87: 1 | O87: 5.557957542 | P87: 1
A88: ID | B88: Idaho | C88: Reserve Ratio | D88: 2829.029748 | E88: 0.114 | F88: 0.114 | G88: 173280 | H88: 19753.92 | I88: 21348.096 | J88: 19753.92 | K88: 1594.176 | L88: 8 | M88: 5 | N88: 2 | O88: 0.5635062696 | P88: 1
A89: IL | B89: Illinois | C89: Benefit Ratio | D89: 5649.493447 | E89: 0.252 | F89: 0.084 | G89: 56142.72 | H89: 14147.96544 | I89: 14147.96544 | J89: 4715.98848 | K89: 4715.98848 | L89: 3 | M89: 3 | N89: 1 | O89: 0.8347630676 | P89: 0.6
A90: IN | B90: Indiana | C90: Reserve Ratio | D90: 3496.974304 | E90: 0.09 | F90: 0.09 | G90: 41154 | H90: 3703.86 | I90: 4366.4394 | J90: 3703.86 | K90: 662.5794 | L90: 2 | M90: 2 | N90: 1 | O90: 0.1894721958 | P90: 0.4
A91: KS | B91: Kansas | C91: Reserve Ratio | D91: 2937.226715 | E91: 0.5 | F91: 0.5 | G91: 60648 | H91: 30324 | I91: 31251.9144 | J91: 30324 | K91: 927.9144 | L91: 11 | M91: 5 | N91: 2 | O91: 0.3159151438 | P91: 1
A92: KY | B92: Kentucky | C92: Reserve Ratio | D92: 5912.501348 | E92: 0.16 | F92: 0.16 | G92: 45486 | H92: 7277.76 | I92: 8069.2164 | J92: 7277.76 | K92: 791.4564 | L92: 2 | M92: 2 | N92: 1 | O92: 0.133861517 | P92: 0.4
A93: LA | B93: Louisiana | C93: Reserve Ratio | D93: 4133.510691 | E93: 0.365 | F93: 0.365 | G93: 33356.4 | H93: 12175.086 | I93: 12662.08944 | J93: 12175.086 | K93: 487.00344 | L93: 4 | M93: 4 | N93: 2 | O93: 0.1178183574 | P93: 0.8
A94: MA | B94: Massachusetts | C94: Reserve Ratio | D94: 7856.449223 | E94: 0.31 | F94: 0.31 | G94: 64980 | H94: 20143.8 | I94: 22665.024 | J94: 20143.8 | K94: 2521.224 | L94: 3 | M94: 3 | N94: 2 | O94: 0.3209113848 | P94: 0.6
A95: MD | B95: Maryland | C95: Benefit Ratio | D95: 5737.572112 | E95: 0.1974 | F95: 0.0658 | G95: 36822 | H95: 7268.6628 | I95: 7268.6628 | J95: 2422.8876 | K95: 2422.8876 | L95: 2 | M95: 2 | N95: 1 | O95: 0.4222844702 | P95: 0.4
A96: ME | B96: Maine | C96: Reserve Ratio | D96: 4244.231255 | E96: 0.2 | F96: 0.2 | G96: 51984 | H96: 10396.8 | I96: 11358.504 | J96: 10396.8 | K96: 961.704 | L96: 3 | M96: 3 | N96: 1 | O96: 0.2265908576 | P96: 0.6
A97: MI | B97: Michigan | C97: Reserve Ratio | D97: 3662.188786 | E97: 0.103 | F97: 0.103 | G97: 38988 | H97: 4015.764 | I97: 5220.4932 | J97: 4015.764 | K97: 1204.7292 | L97: 2 | M97: 2 | N97: 1 | O97: 0.3289642535 | P97: 0.4
A98: MN | B98: Minnesota | C98: Benefit Ratio | D98: 6580.351774 | E98: 0.358 | F98: 0.0895 | G98: 147288 | H98: 52729.104 | I98: 52729.104 | J98: 13182.276 | K98: 13182.276 | L98: 9 | M98: 5 | N98: 2 | O98: 2.003278313 | P98: 1
A99: MO | B99: Missouri | C99: Reserve Ratio | D99: 3065.137571 | E99: 0.27 | F99: 0.27 | G99: 51984 | H99: 14035.68 | I99: 14597.1072 | J99: 14035.68 | K99: 561.4272 | L99: 5 | M99: 5 | N99: 2 | O99: 0.1831654166 | P99: 1
A100: MS | B100: Mississippi | C100: Benefit Ratio | D100: 2500.44231 | E100: 0.162 | F100: 0.054 | G100: 60648 | H100: 9824.976 | I100: 9824.976 | J100: 3274.992 | K100: 3274.992 | L100: 4 | M100: 4 | N100: 2 | O100: 1.309765071 | P100: 0.8
A101: MT | B101: Montana | C101: Reserve Ratio | D101: 4585.79219 | E101: 0.2 | F101: 0.2 | G101: 142956 | H101: 28591.2 | I101: 30220.8984 | J101: 28591.2 | K101: 1629.6984 | L101: 7 | M101: 5 | N101: 2 | O101: 0.3553799066 | P101: 1
A102: NC | B102: North Carolina | C102: Reserve Ratio | D102: 2144.837966 | E102: 0.082 | F102: 0.082 | G102: 105267.6 | H102: 8631.9432 | I102: 9168.80796 | J102: 8631.9432 | K102: 536.86476 | L102: 5 | M102: 5 | N102: 2 | O102: 0.2503055095 | P102: 1
A103: ND | B103: North Dakota | C103: Reserve Ratio | D103: 6044.526657 | E103: 0.197 | F103: 0.197 | G103: 157684.8 | H103: 31063.9056 | I103: 33129.57648 | J103: 31063.9056 | K103: 2065.67088 | L103: 6 | M103: 5 | N103: 2 | O103: 0.3417423725 | P103: 1
A104: NE | B104: Nebraska | C104: Reserve Ratio | D104: 3896.882771 | E104: 0.2 | F104: 0.2 | G104: 38988 | H104: 7797.6 | I104: 8125.0992 | J104: 7797.6 | K104: 327.4992 | L104: 3 | M104: 3 | N104: 1 | O104: 0.08404132719 | P104: 0.6
A105: NH | B105: New Hampshire | C105: Reserve Ratio | D105: 4093.395036 | E105: 0.335 | F105: 0.335 | G105: 60648 | H105: 20317.08 | I105: 20859.40881 | J105: 20317.08 | K105: 542.3288088 | L105: 6 | M105: 5 | N105: 2 | O105: 0.1324887542 | P105: 1
A106: NJ | B106: New Jersey | C106: Reserve Ratio | D106: 6963.94945 | E106: 0.52 | F106: 0.52 | G106: 149020.8 | H106: 77490.816 | I106: 79800.6384 | J106: 77490.816 | K106: 2309.8224 | L106: 12 | M106: 5 | N106: 2 | O106: 0.3316828211 | P106: 1
A107: NM | B107: New Mexico | C107: Benefit Ratio | D107: 4952.208765 | E107: 0.192 | F107: 0.064 | G107: =+((L43-M43)*(AH43))+(M43*(AH43*0.666)) -> 107433.6 | H107: =+E107*G107 -> 20627.2512 | I107: 20627.2512 | J107: 6875.7504 | K107: =IF(C107="Reserve Ratio",AU43,J107) -> 6875.7504 | L107: 5 | M107: 5 | N107: 2 | O107: =+K107/D107 -> 1.38842095 | P107: =+M107/L43 -> 1
A108: NV | B108: Nevada | C108: Reserve Ratio | D108: 4912.419252 | E108: 0.224 | F108: 0.224 | G108: 135158.4 | H108: 30275.4816 | I108: =IF(C108="Reserve Ratio",H108+AU44,H108) -> 32775.912 | J108: 30275.4816 | K108: 2500.4304 | L108: 7 | M108: =+IF(L108>L44,L44,L108) -> 5 | N108: 2 | O108: 0.5090018323 | P108: 1
A109: NY | B109: New York | C109: Reserve Ratio | D109: 5035.281235 | E109: 0.33 | F109: 0.33 | G109: 49384.8 | H109: 16296.984 | I109: 17358.7572 | J109: 16296.984 | K109: 1061.7732 | L109: 4 | M109: 4 | N109: 1 | O109: 0.2108667124 | P109: 0.8
A110: OH | B110: Ohio | C110: Reserve Ratio | D110: 5057.741415 | E110: 0.34 | F110: 0.34 | G110: 41154 | H110: 13992.36 | I110: 14938.902 | J110: 13992.36 | K110: 946.542 | L110: 3 | M110: 3 | N110: 1 | O110: 0.1871471715 | P110: 0.6
A111: OK | B111: Oklahoma | C111: Benefit Wage | D111: 5549.658703 | E111: 0.3 | F111: 0.1 | G111: 78409.2 | H111: 23522.76 | I111: 23522.76 | J111: 7840.92 | K111: 7840.92 | L111: 5 | M111: 5 | N111: 2 | O111: 1.412865262 | P111: 1
A112: OR | B112: Oregon | C112: Benefit Ratio | D112: 5886.435732 | E112: 0.675 | F112: 0.225 | G112: 175879.2 | H112: 118718.46 | I112: 118718.46 | J112: 39572.82 | K112: 39572.82 | L112: 21 | M112: 5 | N112: 2 | O112: 6.722713337 | P112: 1
A113: PA | B113: Pennsylvania | C113: Benefit Ratio | D113: 5197.148273 | E113: 0.324 | F113: 0.108 | G113: 43320 | H113: 14035.68 | I113: 14035.68 | J113: 4678.56 | K113: 4678.56 | L113: 3 | M113: 3 | N113: 1 | O113: 0.9002167639 | P113: 0.6
A114: PR | B114: Puerto Rico | C114: Reserve Ratio | D114: 2225.173665 | E114: 0.2 | F114: 0.2 | G114: 30324 | H114: 6064.8 | I114: 6919.9368 | J114: 6064.8 | K114: 855.1368 | L114: 4 | M114: 4 | N114: 2 | O114: 0.3843011507 | P114: 0.8
A115: RI | B115: Rhode Island | C115: Reserve Ratio | D115: 5130.63318 | E115: 0.41 | F115: 0.41 | G115: 102235.2 | H115: 41916.432 | I115: 44441.64144 | J115: 41916.432 | K115: 2525.20944 | L115: 9 | M115: 5 | N115: 2 | O115: 0.492182807 | P115: 1
A116: SC | B116: South Carolina | C116: Benefit Ratio | D116: 3204.783381 | E116: 0.6 | F116: 0.2 | G116: 60648 | H116: 36388.8 | I116: 36388.8 | J116: 12129.6 | K116: 12129.6 | L116: 12 | M116: 5 | N116: 2 | O116: 3.784842393 | P116: 1
A117: SD | B117: South Dakota | C117: Reserve Ratio | D117: 4931.041144 | E117: 0.086 | F117: 0.086 | G117: 64980 | H117: 5588.28 | I117: 5939.172 | J117: 5588.28 | K117: 350.892 | L117: 2 | M117: 2 | N117: 1 | O117: 0.07115981996 | P117: 0.4
A118: TN | B118: Tennessee | C118: Reserve Ratio | D118: 3482.891141 | E118: 0.24 | F118: 0.24 | G118: 30324 | H118: 7277.76 | I118: 7613.990124 | J118: 7277.76 | K118: 336.2301242 | L118: 3 | M118: 3 | N118: 1 | O118: 0.09653764948 | P118: 0.6
A119: TX | B119: Texas | C119: Benefit Ratio | D119: 5366.141258 | E119: 0.2475 | F119: 0.0825 | G119: 38988 | H119: 9649.53 | I119: 9649.53 | J119: 3216.51 | K119: 3216.51 | L119: 2 | M119: 2 | N119: 1 | O119: 0.5994083729 | P119: 0.4
A120: UT | B120: Utah | C120: Benefit Ratio | D120: 4492.447631 | E120: 0.32 | F120: 0.08 | G120: 152919.6 | H120: 48934.272 | I120: 48934.272 | J120: 12233.568 | K120: 12233.568 | L120: 11 | M120: 5 | N120: 2 | O120: 2.723140925 | P120: 1
A121: VA | B121: Virginia | C121: Benefit Ratio | D121: 4379.100966 | E121: 0.2 | F121: 0.05 | G121: 114798 | H121: 22959.6 | I121: 22959.6 | J121: 5739.9 | K121: 5739.9 | L121: 6 | M121: 5 | N121: 2 | O121: 1.310748495 | P121: 1
A122: VI | B122: Virgin Islands | C122: Reserve Ratio | D122: 7583.801123 | E122: 0.09 | F122: 0.09 | G122: 34656 | H122: 3119.04 | I122: 3916.128 | J122: 3119.04 | K122: 797.088 | L122: 1 | M122: 1 | N122: 1 | O122: 0.105104022 | P122: 0.2
A123: VT | B123: Vermont | C123: Benefit Ratio | D123: 4012.387779 | E123: 0.231 | F123: 0.077 | G123: 67579.2 | H123: 15610.7952 | I123: 15610.7952 | J123: 5203.5984 | K123: 5203.5984 | L123: 4 | M123: 4 | N123: 2 | O123: 1.296883224 | P123: 0.8
A124: WA | B124: Washington | C124: Benefit Ratio | D124: 6670.425858 | E124: 0.228 | F124: 0.057 | G124: 215733.6 | H124: 49187.2608 | I124: 49187.2608 | J124: 12296.8152 | K124: 12296.8152 | L124: 8 | M124: 5 | N124: 2 | O124: 1.843482779 | P124: 1
A125: WI | B125: Wisconsin | C125: Reserve Ratio | D125: 3468.764634 | E125: 0.21 | F125: 0.21 | G125: 60648 | H125: 12736.08 | I125: 13694.3184 | J125: 12736.08 | K125: 958.2384 | L125: 4 | M125: 4 | N125: 2 | O125: 0.2762477427 | P125: 0.8
A126: WV | B126: West Virginia | C126: Reserve Ratio | D126: 3771.751818 | E126: 0.18 | F126: 0.18 | G126: 51984 | H126: 9357.12 | I126: 10776.2832 | J126: 9357.12 | K126: 1419.1632 | L126: 3 | M126: 3 | N126: 1 | O126: 0.3762610236 | P126: 0.6
A127: WY | B127: Wyoming | C127: Benefit Ratio | D127: 4703.425414 | E127: 0.2652 | F127: 0.0884 | G127: 110032.8 | H127: 29180.69856 | I127: 29180.69856 | J127: 9726.89952 | K127: 9726.89952 | L127: 7 | M127: 5 | N127: 2 | O127: 2.068045874 | P127: 1
M129: =AVERAGE(M76:M127) -> 3.826923077
